Workbook

Sheet Instructions
A1: Highway Safety Improvement Program | K1: Version | L1: 20240514
A2: Formal Funding Application
A3: Scoring Tool Instructions
A5: The instructions can be used to understand the functionality of the tool. The tool attempts to complete as many fields as possible form information entered in the Economic Crash Analysis Tool (ECAT).
A7: The worksheets have been protected because the tool is standardized to import into the ODOT Central Office Database. Once submitted, the complete data layouts will be imported into the current database. At this point, the district will be able to make any changes desired prior to the HSIP Program Committee Review.
A10: I recommend starting a new application by importing data from existing ECAT Tool(s). The import functionality will obtain information from (1) an ECAT Tool that does not have a fundamental change in Safety Performance Function (SPF) ('No' response in Cell "K14" on the Project Information Worksheet) or (2) an ECAT Tool that has have a fundamental change in Safety Performance Function (SPF) ('Yes' response in Cell "K14" on the Project Information Worksheet). Follow the coded prompts. Two files will be required for Item (2). The order of import is does not matter. Following the import process, please verify the data as assumptions have been made. For example, it was assumed that only one route (major route) was used in the Project Element Description Table when determining project limits (All NLFIDs match in Column F). Note: If you choose to import a new dataset, any previous information will be overridden.
A13: At times, it will be necessary to change the font size of cells to make the text visible. Once the tool is activated, select the cells you desire to decrease / increase the font size (selection can be contiguous or noncontiguous cells). Once the cells have been selected, select the desired functionality.
A16: This tool can be used to add rows of details for either work locations of funding sources. Submitters can add up to a total of 10 work locations. Similarly, there are a ten (10) total funding sources possible (including the three already defined). For funding sources, we are asking that each source be individually itemized.

Sheet Safety Application
A1: General Project Information | Z1: Show Conditional Format: | AA1: Yes
A2: Project Sponsoring Agency | D2: ODOT | Z2: Lat Long Format: | AA2: Yes
A3: Project Name | D3: =IF(ScoringCalculations!C2="","",ScoringCalculations!C2) -> WAR US 22 19.24 (Clarksville Rd) | Z3: Priority Rank Format: | AA3: Yes
A4: PID | D4: =IF(ScoringCalculations!C4="","",ScoringCalculations!C4) -> TBD
A5: Applicant Name | D5: Tom Mazza
A6: Contact Phone | D6: 513-933-6591
A7: Contact Email | D7: Thomas.Mazza@dot.ohio.gov
A9: Location Information
A10: ODOT District | C10: =IFERROR(VLOOKUP(H10,RefTables!A:B,2,FALSE),"") -> 8 | F10: County | H10: =MID(A62,2,3) -> WAR
A11: Route Number | C11: US-22 | F11: Road Name | H11: US-22
A12: Begin Logpoint | C12: =IF(C62="","",C62) -> 19.24 | F12: End Logpoint | H12: 19.24
A13: Begin Latitude | C13: 39.41725 | F13: Begin Longitude | H13: -83.99869444
A14: End Latitude | C14: 39.41725 | F14: End Longitude | H14: -83.99869444
A16: Project Description
A17: Summary of Crash Patterns
A18: From 2022-2024, there were 22 total crashes at the US 22/Clarksville Rd intersection (WAR US 22 19.24). There were 7 crashes in 2022, 6 crashes in 2023, and 9 crashes in 2024. There were 0 fatal crashes, 2 serious injury crashes, 13 minor injury crashes, 4 possible injury crashes, and 3 property damage only crashes. The fatal and injury crash rate was 86.4%. Every crash at the US 22/Clarksville Rd intersection was an angle crash. Crashes occurred most often in dry (86%) and daylight (77%) conditions. The majority of crashes occurred between 2-7 PM. Running the stop sign is NOT a major contributing factor with only 14% of crashes resulting from running a stop sign. The most common angle crash was WB/NB with 10 occurrences. There were 15 angle crashes involving westbound vehicles on US 22. Historically, there have been 2-3 angle crashes at the US 22/Clarksville Rd intersection each year from 2015-2020. However, the past 4 years have seen a significant increase in the number of angle crashes. There have been at least 5 angle crashes each year from 2021-2024, with a peak of 9 angle crashes in 2024. A long-term solution is needed to eliminate the potential for high severity angle crashes.
A19: Summary of Recommended Countermeasures
A20: StreetLight Data was used to create an estimated AADT and turning movement count at the intersection. This data was used to complete a signal warrant analysis utilizing ODOT’s Traffic Signal Warrant Spreadsheet. Based on this analysis, a traffic signal is not warranted at the US 22/Clarksville Rd intersection. ODOT District 8 will not pursue a new traffic signal at this location because a traffic signal is not warranted and a new traffic signal is predicted to increase the number of overall crashes. All-way stop control is not being considered at this intersection. The 85th percentile speeds on US 22 are near 60 mph and the nearest stopped conditions on US 22 are over 8 miles away in either direction (Nelson Ave to the north and SR 123 to the south). Based on the historical crash data and past countermeasures, the recommended countermeasure at this time is to construct a single lane modern roundabout at US 22/Clarksville Rd. If funding is awarded to this project, a new traffic count will need to be collected. Then, proper traffic analysis would be completed to confirm a traffic signal is unwarranted and a single lane modern roundabout would operate sufficiently in the design year.
A21: Project Priority Information
A22: Per the 2024 HSIP priority list, the US 22/Clarksville Rd intersection is ranked as rural intersection #105. This intersection does not appear on the current SIP map.
A23: Crash Data
A24: Crash Totals
A25: (average per year) | F25: Fatal & Serious Injury (KA) | G25: Visible Injury (B) | H25: Non-Visible (C) | I25: Property Damage Only (O) | J25: Total
A26: Existing Conditions: Predicted Crash Frequency | F26: =IF(ScoringCalculations!D43=0,"",ScoringCalculations!D43) -> 0.0943 | G26: =IF(ScoringCalculations!E43=0,"",ScoringCalculations!E43) -> 0.2288 | H26: =IF(ScoringCalculations!F43=0,"",ScoringCalculations!F43) -> 0.1523 | I26: =IF(ScoringCalculations!G43=0,"",ScoringCalculations!G43) -> 0.8185 | J26: =ROUND(SUM(F26:I26),2) -> 1.29
A27: Existing Conditions: Expected Crash Frequency | F27: =IF(ScoringCalculations!D44=0,"",ScoringCalculations!D44) -> 0.2135 | G27: =IF(ScoringCalculations!E44=0,"",ScoringCalculations!E44) -> 0.5173 | H27: =IF(ScoringCalculations!F44=0,"",ScoringCalculations!F44) -> 0.3445 | I27: =IF(ScoringCalculations!G44=0,"",ScoringCalculations!G44) -> 0.8483 | J27: =ROUND(SUM(F27:I27),2) -> 1.92
A28: Potential for Safety Improvement | F28: =IF(ScoringCalculations!D45=0,"",ScoringCalculations!D45) -> 0.1192 | G28: =IF(ScoringCalculations!E45=0,"",ScoringCalculations!E45) -> 0.2885 | H28: =IF(ScoringCalculations!F45=0,"",ScoringCalculations!F45) -> 0.1922 | I28: =IF(ScoringCalculations!G45=0,"",ScoringCalculations!G45) -> 0.0298 | J28: 0.63
A29: ="Proposed Conditions: "&IF('Project Scoring'!H7="ECAT - Change in base SPF","Predicted","Expected")&" Crash Frequency" -> Proposed Conditions: Expected Crash Frequency | F29: =IF(ScoringCalculations!D46=0,"",ScoringCalculations!D46) -> 0.0021 | G29: =IF(ScoringCalculations!E46=0,"",ScoringCalculations!E46) -> 0.0184 | H29: =IF(ScoringCalculations!F46=0,"",ScoringCalculations!F46) -> 0.023 | I29: =IF(ScoringCalculations!G46=0,"",ScoringCalculations!G46) -> 0.5928 | J29: 0.64
A30: Observed Crashes | F30: =IF(ScoringCalculations!D47="","",ScoringCalculations!D47) -> 0.6667 | G30: =IF(ScoringCalculations!E47="","",ScoringCalculations!E47) -> 4.3333 | H30: =IF(ScoringCalculations!F47="","",ScoringCalculations!F47) -> 1.3333 | I30: =IF(ScoringCalculations!G47="","",ScoringCalculations!G47) -> 1 | J30: 7.33
A31: Observed People Injury Totals
F32: Fatal Injury (K) | G32: Serious Injury (A) | H32: Visible Injury (B) | I32: Non-Visible (C) | J32: Total
A33: Observed People Injury Totals | F33: =IF(ScoringCalculations!D53="","",ScoringCalculations!D53) -> 0 | G33: =IF(ScoringCalculations!E53="","",ScoringCalculations!E53) -> 1 | H33: =IF(ScoringCalculations!F53="","",ScoringCalculations!F53) -> 7.6667 | I33: =IF(ScoringCalculations!G53="","",ScoringCalculations!G53) -> 4.6667 | J33: =ROUND(SUM(F33:I33),2) -> 13.33
A35: Application Scoring
A36: Category | H36: Scoring Value | I36: Points Awarded | J36: Points Possible
A37: Ratio of Observed Fatal and Serious Injuries to Observed Total Crashes | H37: =IF(J30=0,"",ROUND(SUM(F33:G33)/J30,2)) -> 0.14 | I37: =IFERROR(VLOOKUP(H37,ScoringTable!AA:AB,2,TRUE),"") -> 28 | J37: =MAX(ScoringTable!AB:AB) -> 30
A38: Percentage of the Potential for Safety Improvement to Total Expected Crashes | H38: =IF(J27=0,"",IF(J28<0,0,IFERROR(ROUND(J28/J27,4),0))) -> 0.3281 | I38: =IFERROR(VLOOKUP(H38,ScoringTable!AC:AD,2,TRUE),"") -> 20 | J38: =MAX(ScoringTable!AD:AD) -> 20
A39: Relative Severity Index | H39: =IF(ScoringCalculations!B36=0,"",ScoringCalculations!B36) -> 54875.84 | I39: =IFERROR(VLOOKUP(H39,ScoringTable!AE:AF,2,TRUE),"") -> 20 | J39: =MAX(ScoringTable!AF:AF) -> 20
A40: Equivalent Property Damage Only Index | H40: =IF(J27=0,IF(J30=0,"",ROUND((F30*ScoringCalculations!D48+G30*ScoringCalculations!E48+H30*ScoringCalculations!F48+I30*ScoringCalculations!G48)/J30,2)),ROUND((F27*ScoringCalculations!D48+G27*ScoringCalculations!E48+H27*ScoringCalculations!F48+I27*ScoringCalculations!G48)/J27,2)) -> 8.08 | I40: =IFERROR(VLOOKUP(H40,ScoringTable!AG:AH,2,TRUE),"") -> 20 | J40: =MAX(ScoringTable!AH:AH) -> 20
A41: Location Equity Measure | H41: 0.03 | I41: =IF(H41=0,"",IFERROR(VLOOKUP(H41,ScoringTable!AI:AJ,2,TRUE),"")) -> 0 | J41: =MAX(ScoringTable!AJ:AJ) -> 10
I42: =IFERROR(VLOOKUP(H42,ScoringTable!AM:AN,2,TRUE),"") -> 
I43: =IFERROR(IF(H43<0,0,VLOOKUP(H43,ScoringTable!AO:AP,2,TRUE)),"") -> 
I44: =IFERROR(VLOOKUP(H44,ScoringTable!AQ:AR,2,TRUE),"") -> 
A45: Total | I45: =IF(SUM(I37:I44)=0,"",SUM(I37:I44)) -> 88 | J45: =SUM(J37:J44) -> 100
A47: Safety Key Metrics
A48: Functional Class | D48: 5 - Major Collector Roadway | G48: Active Transportation Need | J48: 1
A49: Major Route AADT | D49: 2200 | G49: Active Transportation Demand | J49: 1
A50: Maximum Posted Speed Limit | D50: 55 | G50: Bicycle Level of traffic stress (if available)
G51: TOAST Score (if available) | J51: 90.8
A53: Strategic Highway Safety Plan
A54: Ohio Emphasis Area | E54: Serious Crash Types
A55: Ohio Emphasis Area Subcategory | E55: Intersection
A56: FHWA Emphasis Area | E56: Improving the design and operation of highway intersections
A57: FHWA Improvement Category | E57: Intersection traffic control
A58: FHWA Improvement Subcategory | E58: Modify control - two-way stop to roundabout
A60: Work Locations
A61: NLFID | C61: Begin Logpoint | D61: End Logpoint | E61: Begin Latitude | F61: Begin Longitude | G61: Location Termini (i.e. from Street 1 to Street 2) | AA61: EndLatitude | AB61: EndLongitude
A62: SWARUS00022**C | C62: 19.24 | D62: 19.24 | E62: 39.41725 | F62: -83.99869444 | G62: US 22 and Clarksville Rd | K62: =IF(OR(E62="",F62=""),"",HYPERLINK(CONCATENATE("http://maps.google.com/maps?q=",+E62,",+",+F62,"+(Begin Project)&iwloc=A&hl=en"),"Google Map")) -> Google Map | M62: =IF(OR(E62="",F62=""),"",HYPERLINK(CONCATENATE("http://bing.com/maps/default.aspx?rtop=1~0&rtp=pos.",E62,"_",F62,"_","Begin Project"),"Bing Maps")) -> Bing Maps | O62: =IF(A62="","",IF(OR(MID(A62,5,2)="IR",MID(A62,5,2)="SR",MID(A62,5,2)="US"),IF(RIGHT(A62,1)="C",HYPERLINK("http://pathweb.pathwayservices.com/ohiopublic/?nlfid='"&A62&"'&logpoint="&C62,"Pathway Images"),"Not Available"),"Not Available")) -> Pathway Images
K63: =IF(OR(E63="",F63=""),"",HYPERLINK(CONCATENATE("http://maps.google.com/maps?q=",+E63,",+",+F63,"+(Begin Project)&iwloc=A&hl=en"),"Google Map")) ->  | M63: =IF(OR(E63="",F63=""),"",HYPERLINK(CONCATENATE("http://bing.com/maps/default.aspx?rtop=1~0&rtp=pos.",E63,"_",F63,"_","Begin Project"),"Bing Maps")) -> 
A73: Project Funding
A74: Project Phase | D74: Safety Study | E74: Interchange Mod. Study | F74: PE - Environmental | G74: PE - Detailed Design | H74: Right of Way /Utilities | I74: Construction | J74: Total
A75: Fiscal Year | F75: 2026 | G75: 2028 | H75: 2028 | I75: 2029
A76: Project Phase Completed | I76: N/A
A77: Previous Safety | J77: =SUM(D77:I77) -> 0
A78: New Safety | F78: 400000 | G78: 125000 | H78: 200000 | I78: 2373862 | J78: =SUM(D78:I78) -> 3098862
A79: Sponsor Funding | J79: 0
J80: 0
J81: 0
J82: 0
J83: 0
J84: 0
J85: 0
J86: 0
C87: Total | D87: =SUM(D77:D86) -> 0 | E87: =SUM(E77:E86) -> 0 | F87: 400000 | G87: 125000 | H87: 200000 | I87: 2373862 | J87: 3098862
A88: Additional Funding Detail
A89: District requesting funding be combined with the CLI US 22 RAB application (202503D08-02). Design and construction for both roundabouts to be completed as 1 project. Design consultant to be selected through the January 2026 programmatic.
A91: Safety Economic Analysis Results
A92: Net Present Value of Project | E92: =IF(ScoringCalculations!D58=0,"",ScoringCalculations!D58) -> 2714862 | G92: Net Benefit | I92: =IF(ScoringCalculations!D60=0,"",ScoringCalculations!D60) -> -1753686.75
A93: Net Present Value of Safety Benefits | E93: =IF(ScoringCalculations!D59=0,"",ScoringCalculations!D59) -> 961175.25 | G93: Benefit / Total Project Cost Ratio | I93: =IF(ScoringCalculations!D61="Unable to calculate","",ROUND(ScoringCalculations!D61,2)) -> 0.35
G94: Benefit / Safety Funding Request Ratio | I94: =IF(E93="","",IF(J78=0,"Please complete project funding table",ROUND(E93/J78,2))) -> 0.31
A96: Project Development
A97: Project Phase | E97: Completed by | H97: Completion Date
A98: Safety Study
A99: Interchange Modification Study
A100: PE-Environmental
A101: PE-Detailed Design
A102: Right of Way / Utilities
A104: Applicant Information
A105: Name | F105: Title | I105: Phone Number
A106: Tom Mazza | F106: Traffic Studies Engineer | I106: =IF(D6="","",D6) -> 513-933-6591
A107: Signature | I107: Date
I108: =NOW() -> 2025-03-31T12:31:18.960
I110: Version: | J110: 20230523
A111: The following information should be included in submission of the safety project application: 1. An electronic copy of the Safety Engineering Study 2. All Excel Analysis Files May include Crash Analysis Module (CAM) Tool, Economic Crash Analysis Tool (ECAT), HSIP Application and Scoring Tool. 3. Benefit-Cost Results (Economic Analysis) 4. DSRT approval signatures
A113: ODOT Use Only:
A114: Application ID:
A115: 202503D08-01
A116: Document Library on Odrive:
A117: O:\Planning\TED\SAFETY\D08\SAFETY APPLICATIONS\202503 Applications\Formal\202503D08-01 (CLI US-22 @ Clarksville Rd)

Sheet DSRTSignature (hidden)
A1: General Project Information | Z1: Show Conditional Format: | AA1: Yes
A2: Project Sponsoring Agency | Z2: Lat Long Format: | AA2: Yes
A3: Project Name | Z3: Priority Rank Format: | AA3: Yes
A4: PID
A5: Project Manager
A6: Contact Phone
A7: Contact Email
A9: Project Description
A10: Summary of Crash Patterns
A12: Summary of Recommended Countermeasures | B12: Summary of Recommended Countermeasures | C12: Summary of Recommended Countermeasures | D12: Summary of Recommended Countermeasures | E12: Summary of Recommended Countermeasures | F12: Summary of Recommended Countermeasures | G12: Summary of Recommended Countermeasures | H12: Summary of Recommended Countermeasures | I12: Summary of Recommended Countermeasures | J12: Summary of Recommended Countermeasures
A14: Project Priority Information | B14: Project Priority Information | C14: Project Priority Information | D14: Project Priority Information | E14: Project Priority Information | F14: Project Priority Information | G14: Project Priority Information | H14: Project Priority Information | I14: Project Priority Information | J14: Project Priority Information
A17: District Safety Review Team Signatures
A18: Name | F18: Title | I18: Approve | J18: Disapprove
F19: Planning & Engineering Administrator | I19: ¨ | J19: ¨
A20: Signature | I20: Date
A22: Comments:
A23: Name | F23: Title | I23: Approve | J23: Disapprove
F24: Highway Management Adminstrator | I24: ¨ | J24: ¨
A25: Signature | I25: Date
A27: Comments:
A28: Name | F28: Title | I28: Approve | J28: Disapprove
F29: Design Engineer | I29: ¨ | J29: ¨
A30: Signature | I30: Date
A32: Comments:
A33: Name | F33: Title | I33: Approve | J33: Disapprove
F34: Planning Manager | I34: ¨ | J34: ¨
A35: Signature | I35: Date
A37: Comments:
A38: Name | F38: Title | I38: Approve | J38: Disapprove
F39: Traffic Engineer | I39: ¨ | J39: ¨
A40: Signature | I40: Date
A42: Comments:
A43: Name | F43: Title | I43: Approve | J43: Disapprove
F44: Other | I44: ¨ | J44: ¨
A45: Signature | I45: Date
A47: Comments:

Sheet Project Scoring (hidden)
A1: Project Scoring Summary
A2: General Project Information
A3: Project Name | F3: Contact Email
A4: Project Description | F4: Contact Phone
A5: Reference Number | F5: Date Performed
A6: Analyst | F6: Analysis Year
A7: Agency/Company | F7: Analysis Type Performed
B9: Category | H9: Value | I9: Points Awarded
B10: ='Safety Application'!A37 -> Ratio of Observed Fatal and Serious Injuries to Observed Total Crashes | H10: =IF('Safety Application'!H37="","",'Safety Application'!H37) -> 0.14 | I10: =IF('Safety Application'!I37="","",'Safety Application'!I37) -> 28
B11: ='Safety Application'!A38 -> Percentage of the Potential for Safety Improvement to Total Expected Crashes | H11: =IF('Safety Application'!H38="","",'Safety Application'!H38) -> 0.3281 | I11: =IF('Safety Application'!I38="","",'Safety Application'!I38) -> 20
B12: ='Safety Application'!A39 -> Relative Severity Index | H12: =IF('Safety Application'!H39="","",'Safety Application'!H39) -> 54875.84 | I12: =IF('Safety Application'!I39="","",'Safety Application'!I39) -> 20
B13: ='Safety Application'!A40 -> Equivalent Property Damage Only Index | H13: =IF('Safety Application'!H40="","",'Safety Application'!H40) -> 8.08 | I13: =IF('Safety Application'!I40="","",'Safety Application'!I40) -> 20
B14: ='Safety Application'!A41 -> Location Equity Measure | H14: =IF('Safety Application'!H41="","",'Safety Application'!H41) -> 0.03 | I14: =IF('Safety Application'!I41="","",'Safety Application'!I41) -> 0
B16: Safety Application Score | I16: =SUM(I10:I14) -> 88

Sheet ScoringCalculations
A1: Project Scoring Summary | AA1: HSM Analysis Type: | AB1: ECAT - Change in base SPF
A2: Project Name | C2: WAR US 22 19.24 (Clarksville Rd) | F2: Contact Email | H2: Thomas.Mazza@dot.ohio.gov
A3: Project Description | C3: Proposed Single Lane Roundabout | F3: Contact Phone | H3: 513-933-6591
A4: Reference Number | C4: TBD | F4: Date Performed | H4: 2025-03-04
A5: Analyst | C5: Tom Mazza | F5: Analysis Year | H5: 2029
A6: Agency/Company | C6: ODOT D08 | F6: Analysis Type Performed | H6: ECAT
A8: Relative Severity Index Calculation | AI8: All Sites
A9: ODOT District | B9: 8 | AA9: NLFID: | AE9: FindTruck | AF9: 0 | AI9: HSM Elements Only | BA9: Crash Costs (2023)
A10: Urban Area | B10: No | AA10: Blog: | AE10: FindVC | AF10: 0 | AI10: Observed Elements Only | BA10: KA | BB10: B | BC10: C | BD10: O
A11: Freeway | B11: No | AA11: Elog: | BA11: 502809 | BB11: 72068 | BC11: 48848 | BD11: 11008
AA12: WAADT: | BA12: =ROUND(BA11/$BD$11,2) -> 45.68 | BB12: =ROUND(BB11/$BD$11,2) -> 6.55 | BC12: =ROUND(BC11/$BD$11,2) -> 4.44 | BD12: =ROUND(BD11/$BD$11,2) -> 1
A13: Fill in the Number of Crashes by Crash Type | AA13: WAADTT:
A14: Crash Type | B14: Number of Crashes | C14: Crash Type Severity Calc | D14: RSI Multiplier | AA14: WVCRatio:
A15: Unknown | B15: 0.0071 | C15: =IF(OR($B$9="",$B$10="",$B$11=""),"",B15*D15) -> 158.4294 | D15: =IFERROR(ROUND(IF($B$9="STW",SUMIFS(RSI_Data!$F:$F,RSI_Data!$C:$C,$B$10,RSI_Data!$D:$D,$B$11,RSI_Data!$E:$E,$A15)/SUMIFS(RSI_Data!$G:$G,RSI_Data!$C:$C,$B$10,RSI_Data!$D:$D,$B$11,RSI_Data!$E:$E,$A15),SUMIFS(RSI_Data!$F:$F,RSI_Data!$C:$C,$B$10,RSI_Data!$D:$D,$B$11,RSI_Data!$A:$A,$B$9,RSI_Data!$E:$E,$A15)/SUMIFS(RSI_Data!$G:$G,RSI_Data!$C:$C,$B$10,RSI_Data!$D:$D,$B$11,RSI_Data!$A:$A,$B$9,RSI_Data!$E:$E,$A15)),0),0) -> 22314 | AA15: TotalLength:
A16: Head On | B16: 0.0205 | C16: =IF(OR($B$9="",$B$10="",$B$11=""),"",B16*D16) -> 2516.3135 | D16: =IFERROR(ROUND(IF($B$9="STW",SUMIFS(RSI_Data!$F:$F,RSI_Data!$C:$C,$B$10,RSI_Data!$D:$D,$B$11,RSI_Data!$E:$E,$A16)/SUMIFS(RSI_Data!$G:$G,RSI_Data!$C:$C,$B$10,RSI_Data!$D:$D,$B$11,RSI_Data!$E:$E,$A16),SUMIFS(RSI_Data!$F:$F,RSI_Data!$C:$C,$B$10,RSI_Data!$D:$D,$B$11,RSI_Data!$A:$A,$B$9,RSI_Data!$E:$E,$A16)/SUMIFS(RSI_Data!$G:$G,RSI_Data!$C:$C,$B$10,RSI_Data!$D:$D,$B$11,RSI_Data!$A:$A,$B$9,RSI_Data!$E:$E,$A16)),0),0) -> 122747 | AA16: Functional Class: | AC16: =IFERROR(VLOOKUP(AB16,RefTables!E27:F34,2,FALSE),"Other") -> Other
A17: Rear End | B17: 0.392 | C17: 13663.944 | D17: =IFERROR(ROUND(IF($B$9="STW",SUMIFS(RSI_Data!$F:$F,RSI_Data!$C:$C,$B$10,RSI_Data!$D:$D,$B$11,RSI_Data!$E:$E,$A17)/SUMIFS(RSI_Data!$G:$G,RSI_Data!$C:$C,$B$10,RSI_Data!$D:$D,$B$11,RSI_Data!$E:$E,$A17),SUMIFS(RSI_Data!$F:$F,RSI_Data!$C:$C,$B$10,RSI_Data!$D:$D,$B$11,RSI_Data!$A:$A,$B$9,RSI_Data!$E:$E,$A17)/SUMIFS(RSI_Data!$G:$G,RSI_Data!$C:$C,$B$10,RSI_Data!$D:$D,$B$11,RSI_Data!$A:$A,$B$9,RSI_Data!$E:$E,$A17)),0),0) -> 34857 | AA17: Truck %: | AB17: =IFERROR(ROUND(AB13/AB12,4),"") -> 
A18: Backing | B18: 0.0571 | C18: 969.2154 | D18: =IFERROR(ROUND(IF($B$9="STW",SUMIFS(RSI_Data!$F:$F,RSI_Data!$C:$C,$B$10,RSI_Data!$D:$D,$B$11,RSI_Data!$E:$E,$A18)/SUMIFS(RSI_Data!$G:$G,RSI_Data!$C:$C,$B$10,RSI_Data!$D:$D,$B$11,RSI_Data!$E:$E,$A18),SUMIFS(RSI_Data!$F:$F,RSI_Data!$C:$C,$B$10,RSI_Data!$D:$D,$B$11,RSI_Data!$A:$A,$B$9,RSI_Data!$E:$E,$A18)/SUMIFS(RSI_Data!$G:$G,RSI_Data!$C:$C,$B$10,RSI_Data!$D:$D,$B$11,RSI_Data!$A:$A,$B$9,RSI_Data!$E:$E,$A18)),0),0) -> 16974
A19: Sideswipe - Meeting | B19: 0.0576 | C19: 3083.6736 | D19: =IFERROR(ROUND(IF($B$9="STW",SUMIFS(RSI_Data!$F:$F,RSI_Data!$C:$C,$B$10,RSI_Data!$D:$D,$B$11,RSI_Data!$E:$E,$A19)/SUMIFS(RSI_Data!$G:$G,RSI_Data!$C:$C,$B$10,RSI_Data!$D:$D,$B$11,RSI_Data!$E:$E,$A19),SUMIFS(RSI_Data!$F:$F,RSI_Data!$C:$C,$B$10,RSI_Data!$D:$D,$B$11,RSI_Data!$A:$A,$B$9,RSI_Data!$E:$E,$A19)/SUMIFS(RSI_Data!$G:$G,RSI_Data!$C:$C,$B$10,RSI_Data!$D:$D,$B$11,RSI_Data!$A:$A,$B$9,RSI_Data!$E:$E,$A19)),0),0) -> 53536
A20: Sideswipe - Passing | B20: 0.077 | C20: 2626.47 | D20: =IFERROR(ROUND(IF($B$9="STW",SUMIFS(RSI_Data!$F:$F,RSI_Data!$C:$C,$B$10,RSI_Data!$D:$D,$B$11,RSI_Data!$E:$E,$A20)/SUMIFS(RSI_Data!$G:$G,RSI_Data!$C:$C,$B$10,RSI_Data!$D:$D,$B$11,RSI_Data!$E:$E,$A20),SUMIFS(RSI_Data!$F:$F,RSI_Data!$C:$C,$B$10,RSI_Data!$D:$D,$B$11,RSI_Data!$A:$A,$B$9,RSI_Data!$E:$E,$A20)/SUMIFS(RSI_Data!$G:$G,RSI_Data!$C:$C,$B$10,RSI_Data!$D:$D,$B$11,RSI_Data!$A:$A,$B$9,RSI_Data!$E:$E,$A20)),0),0) -> 34110
A21: Angle | B21: 0.8052 | C21: 53101.3296 | D21: =IFERROR(ROUND(IF($B$9="STW",SUMIFS(RSI_Data!$F:$F,RSI_Data!$C:$C,$B$10,RSI_Data!$D:$D,$B$11,RSI_Data!$E:$E,$A21)/SUMIFS(RSI_Data!$G:$G,RSI_Data!$C:$C,$B$10,RSI_Data!$D:$D,$B$11,RSI_Data!$E:$E,$A21),SUMIFS(RSI_Data!$F:$F,RSI_Data!$C:$C,$B$10,RSI_Data!$D:$D,$B$11,RSI_Data!$A:$A,$B$9,RSI_Data!$E:$E,$A21)/SUMIFS(RSI_Data!$G:$G,RSI_Data!$C:$C,$B$10,RSI_Data!$D:$D,$B$11,RSI_Data!$A:$A,$B$9,RSI_Data!$E:$E,$A21)),0),0) -> 65948
A22: Parked Vehicle | B22: 0.0538 | C22: 1823.4434 | D22: =IFERROR(ROUND(IF($B$9="STW",SUMIFS(RSI_Data!$F:$F,RSI_Data!$C:$C,$B$10,RSI_Data!$D:$D,$B$11,RSI_Data!$E:$E,$A22)/SUMIFS(RSI_Data!$G:$G,RSI_Data!$C:$C,$B$10,RSI_Data!$D:$D,$B$11,RSI_Data!$E:$E,$A22),SUMIFS(RSI_Data!$F:$F,RSI_Data!$C:$C,$B$10,RSI_Data!$D:$D,$B$11,RSI_Data!$A:$A,$B$9,RSI_Data!$E:$E,$A22)/SUMIFS(RSI_Data!$G:$G,RSI_Data!$C:$C,$B$10,RSI_Data!$D:$D,$B$11,RSI_Data!$A:$A,$B$9,RSI_Data!$E:$E,$A22)),0),0) -> 33893
A23: Pedestrian | B23: 0.0131 | C23: 2412.3781 | D23: =IFERROR(ROUND(IF($B$9="STW",SUMIFS(RSI_Data!$F:$F,RSI_Data!$C:$C,$B$10,RSI_Data!$D:$D,$B$11,RSI_Data!$E:$E,$A23)/SUMIFS(RSI_Data!$G:$G,RSI_Data!$C:$C,$B$10,RSI_Data!$D:$D,$B$11,RSI_Data!$E:$E,$A23),SUMIFS(RSI_Data!$F:$F,RSI_Data!$C:$C,$B$10,RSI_Data!$D:$D,$B$11,RSI_Data!$A:$A,$B$9,RSI_Data!$E:$E,$A23)/SUMIFS(RSI_Data!$G:$G,RSI_Data!$C:$C,$B$10,RSI_Data!$D:$D,$B$11,RSI_Data!$A:$A,$B$9,RSI_Data!$E:$E,$A23)),0),0) -> 184151
A24: Animal | B24: 0 | C24: 0 | D24: =IFERROR(ROUND(IF($B$9="STW",SUMIFS(RSI_Data!$F:$F,RSI_Data!$C:$C,$B$10,RSI_Data!$D:$D,$B$11,RSI_Data!$E:$E,$A24)/SUMIFS(RSI_Data!$G:$G,RSI_Data!$C:$C,$B$10,RSI_Data!$D:$D,$B$11,RSI_Data!$E:$E,$A24),SUMIFS(RSI_Data!$F:$F,RSI_Data!$C:$C,$B$10,RSI_Data!$D:$D,$B$11,RSI_Data!$A:$A,$B$9,RSI_Data!$E:$E,$A24)/SUMIFS(RSI_Data!$G:$G,RSI_Data!$C:$C,$B$10,RSI_Data!$D:$D,$B$11,RSI_Data!$A:$A,$B$9,RSI_Data!$E:$E,$A24)),0),0) -> 16996
A25: Train | B25: 0.0004 | C25: 61.5812 | D25: =IFERROR(ROUND(IF($B$9="STW",SUMIFS(RSI_Data!$F:$F,RSI_Data!$C:$C,$B$10,RSI_Data!$D:$D,$B$11,RSI_Data!$E:$E,$A25)/SUMIFS(RSI_Data!$G:$G,RSI_Data!$C:$C,$B$10,RSI_Data!$D:$D,$B$11,RSI_Data!$E:$E,$A25),SUMIFS(RSI_Data!$F:$F,RSI_Data!$C:$C,$B$10,RSI_Data!$D:$D,$B$11,RSI_Data!$A:$A,$B$9,RSI_Data!$E:$E,$A25)/SUMIFS(RSI_Data!$G:$G,RSI_Data!$C:$C,$B$10,RSI_Data!$D:$D,$B$11,RSI_Data!$A:$A,$B$9,RSI_Data!$E:$E,$A25)),0),0) -> 153953
A26: Pedalcycles | B26: 0.0093 | C26: 1774.5423 | D26: =IFERROR(ROUND(IF($B$9="STW",SUMIFS(RSI_Data!$F:$F,RSI_Data!$C:$C,$B$10,RSI_Data!$D:$D,$B$11,RSI_Data!$E:$E,$A26)/SUMIFS(RSI_Data!$G:$G,RSI_Data!$C:$C,$B$10,RSI_Data!$D:$D,$B$11,RSI_Data!$E:$E,$A26),SUMIFS(RSI_Data!$F:$F,RSI_Data!$C:$C,$B$10,RSI_Data!$D:$D,$B$11,RSI_Data!$A:$A,$B$9,RSI_Data!$E:$E,$A26)/SUMIFS(RSI_Data!$G:$G,RSI_Data!$C:$C,$B$10,RSI_Data!$D:$D,$B$11,RSI_Data!$A:$A,$B$9,RSI_Data!$E:$E,$A26)),0),0) -> 190811
A27: Other Non-Vehicle | B27: 0.0002 | C27: 0 | D27: =IFERROR(ROUND(IF($B$9="STW",SUMIFS(RSI_Data!$F:$F,RSI_Data!$C:$C,$B$10,RSI_Data!$D:$D,$B$11,RSI_Data!$E:$E,$A27)/SUMIFS(RSI_Data!$G:$G,RSI_Data!$C:$C,$B$10,RSI_Data!$D:$D,$B$11,RSI_Data!$E:$E,$A27),SUMIFS(RSI_Data!$F:$F,RSI_Data!$C:$C,$B$10,RSI_Data!$D:$D,$B$11,RSI_Data!$A:$A,$B$9,RSI_Data!$E:$E,$A27)/SUMIFS(RSI_Data!$G:$G,RSI_Data!$C:$C,$B$10,RSI_Data!$D:$D,$B$11,RSI_Data!$A:$A,$B$9,RSI_Data!$E:$E,$A27)),0),0) -> 0
A28: Fixed Object | B28: 0.301 | C28: 16431.289 | D28: =IFERROR(ROUND(IF($B$9="STW",SUMIFS(RSI_Data!$F:$F,RSI_Data!$C:$C,$B$10,RSI_Data!$D:$D,$B$11,RSI_Data!$E:$E,$A28)/SUMIFS(RSI_Data!$G:$G,RSI_Data!$C:$C,$B$10,RSI_Data!$D:$D,$B$11,RSI_Data!$E:$E,$A28),SUMIFS(RSI_Data!$F:$F,RSI_Data!$C:$C,$B$10,RSI_Data!$D:$D,$B$11,RSI_Data!$A:$A,$B$9,RSI_Data!$E:$E,$A28)/SUMIFS(RSI_Data!$G:$G,RSI_Data!$C:$C,$B$10,RSI_Data!$D:$D,$B$11,RSI_Data!$A:$A,$B$9,RSI_Data!$E:$E,$A28)),0),0) -> 54589
A29: Other Object | B29: 0.0089 | C29: 136.3302 | D29: =IFERROR(ROUND(IF($B$9="STW",SUMIFS(RSI_Data!$F:$F,RSI_Data!$C:$C,$B$10,RSI_Data!$D:$D,$B$11,RSI_Data!$E:$E,$A29)/SUMIFS(RSI_Data!$G:$G,RSI_Data!$C:$C,$B$10,RSI_Data!$D:$D,$B$11,RSI_Data!$E:$E,$A29),SUMIFS(RSI_Data!$F:$F,RSI_Data!$C:$C,$B$10,RSI_Data!$D:$D,$B$11,RSI_Data!$A:$A,$B$9,RSI_Data!$E:$E,$A29)/SUMIFS(RSI_Data!$G:$G,RSI_Data!$C:$C,$B$10,RSI_Data!$D:$D,$B$11,RSI_Data!$A:$A,$B$9,RSI_Data!$E:$E,$A29)),0),0) -> 15318
A30: Overturning | B30: 0.0236 | C30: 2858.7624 | D30: =IFERROR(ROUND(IF($B$9="STW",SUMIFS(RSI_Data!$F:$F,RSI_Data!$C:$C,$B$10,RSI_Data!$D:$D,$B$11,RSI_Data!$E:$E,$A30)/SUMIFS(RSI_Data!$G:$G,RSI_Data!$C:$C,$B$10,RSI_Data!$D:$D,$B$11,RSI_Data!$E:$E,$A30),SUMIFS(RSI_Data!$F:$F,RSI_Data!$C:$C,$B$10,RSI_Data!$D:$D,$B$11,RSI_Data!$A:$A,$B$9,RSI_Data!$E:$E,$A30)/SUMIFS(RSI_Data!$G:$G,RSI_Data!$C:$C,$B$10,RSI_Data!$D:$D,$B$11,RSI_Data!$A:$A,$B$9,RSI_Data!$E:$E,$A30)),0),0) -> 121134
A31: Other Non-Collision | B31: 0.0211 | C31: 725.418 | D31: =IFERROR(ROUND(IF($B$9="STW",SUMIFS(RSI_Data!$F:$F,RSI_Data!$C:$C,$B$10,RSI_Data!$D:$D,$B$11,RSI_Data!$E:$E,$A31)/SUMIFS(RSI_Data!$G:$G,RSI_Data!$C:$C,$B$10,RSI_Data!$D:$D,$B$11,RSI_Data!$E:$E,$A31),SUMIFS(RSI_Data!$F:$F,RSI_Data!$C:$C,$B$10,RSI_Data!$D:$D,$B$11,RSI_Data!$A:$A,$B$9,RSI_Data!$E:$E,$A31)/SUMIFS(RSI_Data!$G:$G,RSI_Data!$C:$C,$B$10,RSI_Data!$D:$D,$B$11,RSI_Data!$A:$A,$B$9,RSI_Data!$E:$E,$A31)),0),0) -> 34380
A32: Left Turn | B32: 0.0757 | C32: 3216.0388 | D32: =IFERROR(ROUND(IF($B$9="STW",SUMIFS(RSI_Data!$F:$F,RSI_Data!$C:$C,$B$10,RSI_Data!$D:$D,$B$11,RSI_Data!$E:$E,$A32)/SUMIFS(RSI_Data!$G:$G,RSI_Data!$C:$C,$B$10,RSI_Data!$D:$D,$B$11,RSI_Data!$E:$E,$A32),SUMIFS(RSI_Data!$F:$F,RSI_Data!$C:$C,$B$10,RSI_Data!$D:$D,$B$11,RSI_Data!$A:$A,$B$9,RSI_Data!$E:$E,$A32)/SUMIFS(RSI_Data!$G:$G,RSI_Data!$C:$C,$B$10,RSI_Data!$D:$D,$B$11,RSI_Data!$A:$A,$B$9,RSI_Data!$E:$E,$A32)),0),0) -> 42484
A33: Right Turn | B33: 0 | C33: 0 | D33: =IFERROR(ROUND(IF($B$9="STW",SUMIFS(RSI_Data!$F:$F,RSI_Data!$C:$C,$B$10,RSI_Data!$D:$D,$B$11,RSI_Data!$E:$E,$A33)/SUMIFS(RSI_Data!$G:$G,RSI_Data!$C:$C,$B$10,RSI_Data!$D:$D,$B$11,RSI_Data!$E:$E,$A33),SUMIFS(RSI_Data!$F:$F,RSI_Data!$C:$C,$B$10,RSI_Data!$D:$D,$B$11,RSI_Data!$A:$A,$B$9,RSI_Data!$E:$E,$A33)/SUMIFS(RSI_Data!$G:$G,RSI_Data!$C:$C,$B$10,RSI_Data!$D:$D,$B$11,RSI_Data!$A:$A,$B$9,RSI_Data!$E:$E,$A33)),0),0) -> 38174
A34: Totals | B34: =SUM(B15:B33) -> 1.9236 | C34: =SUM(C15:C33) -> 105559.1589
A36: RSI Value = | B36: =IFERROR(ROUND(C34/B34,2),0) -> 54875.84
A40: All Sites
A41: Crash Frequencies Per Year Summary Results | AA41: Project EB Method Summary Results (Without Animal Crashes)
D42: KA | E42: B | F42: C | G42: O | H42: Total | AD42: KA | AE42: B | AF42: C | AG42: O | AH42: Total
A43: Existing Conditions: Predicted Crash Frequency | D43: =IF($AH$43+$AH$50=0,"",IF($A$40=$AI$10,AD50,IF($A$40=$AI$9,AD43,AD43+AD50))) -> 0.0943 | E43: =IF($AH$43+$AH$50=0,"",IF($A$40=$AI$10,AE50,IF($A$40=$AI$9,AE43,AE43+AE50))) -> 0.2288 | F43: 0.1523 | G43: 0.8185 | H43: =ROUND(SUM(D43:G43),2) -> 1.29 | AA43: Existing Conditions: Predicted Crash Frequency | AD43: 0.0943 | AE43: 0.2288 | AF43: 0.1523 | AG43: 0.8185 | AH43: 1.2939
A44: Existing Conditions: Expected Crash Frequency | D44: =IF($AH$44+$AH$50=0,"",IF($A$41=$AI$10,AD50,IF($A$41=$AI$9,AD44,AD44+AD50))) -> 0.2135 | E44: =IF($AH$44+$AH$50=0,"",IF($A$41=$AI$10,AE50,IF($A$41=$AI$9,AE44,AE44+AE50))) -> 0.5173 | F44: 0.3445 | G44: 0.8483 | H44: 1.92 | AA44: Existing Conditions: Expected Crash Frequency | AD44: 0.2135 | AE44: 0.5173 | AF44: 0.3445 | AG44: 0.8483 | AH44: 1.9236
A45: Potential for Safety Improvement | D45: =IF($AH$43+$AH$50=0,"",D44-D43) -> 0.1192 | E45: =IF($AH$43+$AH$50=0,"",E44-E43) -> 0.2885 | F45: 0.1922 | G45: 0.0298 | H45: 0.63 | AA45: Potential for Safety Improvement | AD45: 0.1192 | AE45: 0.2885 | AF45: 0.1922 | AG45: 0.0298 | AH45: 0.6297
A46: ="Proposed Conditions: "&IF('Project Scoring'!$H$7="ECAT - Change in base SPF","Predicted","Expected")&" Crash Frequency" -> Proposed Conditions: Expected Crash Frequency | D46: =IF($AH$46+$AH$51=0,"",IF($A$43=$AI$10,AD51,IF($A$43=$AI$9,AD46,AD46+AD51))) -> 0.0021 | E46: =IF($AH$46+$AH$51=0,"",IF($A$43=$AI$10,AE51,IF($A$43=$AI$9,AE46,AE46+AE51))) -> 0.0184 | F46: 0.023 | G46: 0.5928 | H46: 0.64 | AA46: ="Proposed Conditions: "&IF('Project Scoring'!$H$7="ECAT - Change in base SPF","Predicted","Expected")&" Crash Frequency" -> Proposed Conditions: Expected Crash Frequency | AD46: 0.0021 | AE46: 0.0184 | AF46: 0.023 | AG46: 0.5928 | AH46: 0.6363
A47: Observed Crashes | D47: 0.6667 | E47: 4.3333 | F47: 1.3333 | G47: 1 | H47: 7.33
A48: Equivalent Property Damage Only Factor | D48: =BA12 -> 45.68 | E48: =BB12 -> 6.55 | F48: 4.44 | G48: 1 | AA48: Project EB Method Summary Results (Without Animal Crashes)
A49: Equivalent Property Damage Only Value | D49: =IF($H$44=0,D48*D47,D44*D48) -> 9.75268 | E49: =IF($H$44=0,E48*E47,E44*E48) -> 3.388315 | F49: 1.52958 | G49: 0.8483 | H49: =ROUND(SUM(D49:G49),2) -> 15.52 | AD49: KA | AE49: B | AF49: C | AG49: O | AH49: Total
AA50: Existing Conditions Observed Crashes | AD50: 0 | AE50: 0 | AF50: 0 | AG50: 0 | AH50: 0
A51: People Injuries Per Year Summary Results | AA51: Proposed Conditions Observed Crashes | AD51: 0 | AE51: 0 | AF51: 0 | AG51: 0 | AH51: 0
D52: K | E52: A | F52: B | G52: C | H52: Total
A53: Observed Totals | D53: 0 | E53: 1 | F53: 7.6667 | G53: 4.6667 | H53: =ROUND(SUM(D53:G53),2) -> 13.33
A56: Benefit - Cost Ratio Calculations
C58: Net Present Value of Project | D58: 2714862
C59: Net Present Value of Safety Benefits | D59: 961175.25
C60: Net Benefit | D60: -1753686.75
C61: Benefit / Cost Ratio | D61: 0.3540420282

Sheet ScoringTable
A1: ODOT Highway Safety Improvement Program (HSIP) | AA1: Safety Criteria
A2: Formal Funding Application Scoring Criteria | AA2: Ratio of Observed Fatal and Serious Injuries to Observed Total Crashes | AC2: Percentage of the Potential for Safety Improvement to Total Expected Crashes | AE2: Relative Severity Index | AG2: Equivalent Property Damage Only Index | AI2: Location Equity Measure
A3: =AA2 -> Ratio of Observed Fatal and Serious Injuries to Observed Total Crashes | C3: =AC2 -> Percentage of the Potential for Safety Improvement to Total Expected Crashes | E3: =AE2 -> Relative Severity Index | G3: =AG2 -> Equivalent Property Damage Only Index | I3: =AI2 -> Location Equity Measure | AA3: Value | AB3: Points | AC3: Value | AD3: Points | AE3: Value | AF3: Points | AG3: Value | AH3: Points | AI3: Value | AJ3: Points
A4: Value | B4: Points | C4: Value | D4: Points | E4: Value | F4: Points | G4: Value | H4: Points | I4: Value | J4: Points | AA4: 0 | AB4: 0 | AC4: 0 | AD4: 0 | AE4: 0 | AF4: 0 | AG4: 0 | AH4: 0 | AI4: 0 | AJ4: 0
A5: ="< "&TEXT(AA5,"#0.00") -> < 0.01 | B5: =IF(AB4="","",AB4) -> 0 | C5: ="< "&AC5*100&"%" -> < 2.5% | D5: =IF(AD4="","",AD4) -> 0 | E5: ="< "&TEXT(AE5,"00,000") -> < 20,000 | F5: =IF(AF4="","",AF4) -> 0 | G5: ="< "&TEXT(AG5,"#0.00") -> < 1.00 | H5: =IF(AH4="","",AH4) -> 0 | I5: ="< "&AI5*100&"%" -> < 10% | J5: =IF(AJ4="","",AJ4) -> 0 | AA5: 0.01 | AB5: 2 | AC5: 0.025 | AD5: 2 | AE5: 20000 | AF5: 2 | AG5: 1 | AH5: 2 | AI5: 0.1 | AJ5: 2
A6: =TEXT(AA5,"#0.00")&"-"&TEXT(AA6-0.001,"#0.000") -> 0.01-0.019 | B6: =IF(AB5="","",AB5) -> 2 | C6: =AC5*100&"%"&"-"&(AC6-0.0001)*100&"%" -> 2.5%-4.99% | D6: 2 | E6: =TEXT(AE5,"00,000")&"-"&TEXT(AE6-0.01,"00,000.00") -> 20,000-22,499.99 | F6: 2 | G6: =TEXT(AG5,"#0.00")&"-"&TEXT(AG6-0.001,"#0.000") -> 1.00-1.499 | H6: 2 | I6: =AI5*100&"%"&"-"&(AI6-0.0001)*100&"%" -> 10%-14.99% | J6: 2 | AA6: =AA5+0.01 -> 0.02 | AB6: 4 | AC6: =AC5+0.025 -> 0.05 | AD6: 4 | AE6: =AE5+2500 -> 22500 | AF6: 4 | AG6: =AG5+0.5 -> 1.5 | AH6: 4 | AI6: =AI5+0.05 -> 0.15 | AJ6: 4
A7: =TEXT(AA6,"#0.00")&"-"&TEXT(AA7-0.001,"#0.000") -> 0.02-0.029 | B7: 4 | C7: =AC6*100&"%"&"-"&(AC7-0.0001)*100&"%" -> 5%-7.49% | D7: 4 | E7: =TEXT(AE6,"00,000")&"-"&TEXT(AE7-0.01,"00,000.00") -> 22,500-24,999.99 | F7: 4 | G7: =TEXT(AG6,"#0.00")&"-"&TEXT(AG7-0.001,"#0.000") -> 1.50-1.999 | H7: 4 | I7: =AI6*100&"%"&"-"&(AI7-0.0001)*100&"%" -> 15%-19.99% | J7: 4 | AA7: =AA6+0.01 -> 0.03 | AB7: 6 | AC7: =AC6+0.025 -> 0.075 | AD7: 6 | AE7: =AE6+2500 -> 25000 | AF7: 6 | AG7: =AG6+0.5 -> 2 | AH7: 6 | AI7: =AI6+0.05 -> 0.2 | AJ7: 6
A8: 0.03-0.039 | B8: 6 | C8: 7.5%-9.99% | D8: 6 | E8: 25,000-27,499.99 | F8: 6 | G8: 2.00-2.499 | H8: 6 | I8: 20%-24.99% | J8: 6 | AA8: 0.04 | AB8: 8 | AC8: 0.1 | AD8: 8 | AE8: 27500 | AF8: 8 | AG8: 2.5 | AH8: 8 | AI8: 0.25 | AJ8: 8
A9: 0.04-0.049 | B9: 8 | C9: 10%-12.49% | D9: 8 | E9: 27,500-29,999.99 | F9: 8 | G9: 2.50-2.999 | H9: 8 | I9: 25%-29.99% | J9: 8 | AA9: 0.05 | AB9: 10 | AC9: 0.125 | AD9: 10 | AE9: 30000 | AF9: 10 | AG9: 3 | AH9: 10 | AI9: 0.3 | AJ9: 10
A10: 0.05-0.059 | B10: 10 | C10: 12.5%-14.99% | D10: 10 | E10: 30,000-32,499.99 | F10: 10 | G10: 3.00-3.499 | H10: 10 | I10: ="≥ "&AI9*100&"%" -> ≥ 30% | J10: 10 | AA10: 0.06 | AB10: 12 | AC10: 0.15 | AD10: 12 | AE10: 32500 | AF10: 12 | AG10: 3.5 | AH10: 12
A11: 0.06-0.069 | B11: 12 | C11: 15%-17.49% | D11: 12 | E11: 32,500-34,999.99 | F11: 12 | G11: 3.50-3.999 | H11: 12 | AA11: 0.07 | AB11: 14 | AC11: 0.175 | AD11: 14 | AE11: 35000 | AF11: 14 | AG11: 4 | AH11: 14
A12: 0.07-0.079 | B12: 14 | C12: 17.5%-19.99% | D12: 14 | E12: 35,000-37,499.99 | F12: 14 | G12: 4.00-4.499 | H12: 14 | AA12: 0.08 | AB12: 16 | AC12: 0.2 | AD12: 16 | AE12: 37500 | AF12: 16 | AG12: 4.5 | AH12: 16
A13: 0.08-0.089 | B13: 16 | C13: 20%-22.49% | D13: 16 | E13: 37,500-39,999.99 | F13: 16 | G13: 4.50-4.999 | H13: 16 | AA13: 0.09 | AB13: 18 | AC13: 0.225 | AD13: 18 | AE13: 40000 | AF13: 18 | AG13: 5 | AH13: 18
A14: 0.09-0.099 | B14: 18 | C14: 22.5%-24.99% | D14: 18 | E14: 40,000-42,499.99 | F14: 18 | G14: 5.00-5.499 | H14: 18 | AA14: 0.1 | AB14: 20 | AC14: 0.25 | AD14: 20 | AE14: 42500 | AF14: 20 | AG14: 5.5 | AH14: 20
A15: 0.10-0.109 | B15: 20 | C15: ="≥ "&AC14*100&"%" -> ≥ 25% | D15: 20 | E15: ="≥ "&TEXT(AE14,"00,000") -> ≥ 42,500 | F15: 20 | G15: ="≥ "&TEXT(AG14,"#0.00") -> ≥ 5.50 | H15: 20 | AA15: 0.11 | AB15: 22
A16: 0.11-0.119 | B16: 22 | AA16: 0.12 | AB16: 24
A17: 0.12-0.129 | B17: 24 | AA17: 0.13 | AB17: 26
A18: 0.13-0.139 | B18: 26 | AA18: 0.14 | AB18: 28
A19: 0.14-0.149 | B19: 28 | AA19: 0.15 | AB19: 30
A20: ="≥ "&TEXT(AA19,"#0.00") -> ≥ 0.15 | B20: 30
J24: Total Points
J26: =SUM(MAX(AB4:AB1000),MAX(AD4:AD1000),MAX(AF4:AF1000),MAX(AH4:AH1000),MAX(AJ4:AJ1000),MAX(AL4:AL1000),MAX(AN4:AN1000),MAX(AP4:AP1000),MAX(AR4:AR1000)) -> 100

Sheet RefTables (hidden)
A1: County Code | B1: District Number | D1: Ohio SHSP Emphasis Area | F1: FHWA SHSP Emphasis Area | H1: Improvement Type | I1: Access management | J1: Advanced technology and ITS | K1: Alignment | L1: Interchange design | M1: Intersection geometry | S1: MPH
A2: =LEFT(C2,3) -> ADA | B2: 9 | C2: ADA - Adams | D2: Serious Crash Types | F2: Creating more effective processes and safety management systems | H2: Access management | K2: Alignment - other | L2: Acceleration / deceleration / merge lane | S2: 5
A3: =LEFT(C3,3) -> ALL | B3: 1 | C3: ALL - Allen | D3: High Risk Drivers and Behaviors | F3: Curbing aggressive driving | H3: Advanced technology and ITS | I3: Access management - other | J3: AdvancedtechnologyandITS | K3: Horizontal curve realignment | L3: Convert at-grade intersection to interchange | M3: Auxiliary lanes - add acceleration lane | S3: =S2+5 -> 10
A4: ASD | B4: 3 | C4: ASD - Ashland | D4: Special Vehicles and Roadway Users | F4: Designing safer work zones | H4: Alignment | I4: Change in access - close or restrict existing access | J4: Advanced technology and ITS - other | K4: Horizontal and vertical alignment | L4: Extend existing lane on ramp | M4: Auxiliary lanes - add auxiliary through lane | S4: =S3+5 -> 15
A5: ATB | B5: 4 | C5: ATB - Ashtabula | D5: Data | F5: Enhancing emergency medical capabilities to increase survivability | H5: Animal-related | I5: Change in access - miscellaneous/unspecified | J5: Congestion detection / traffic monitoring system | K5: Vertical alignment or elevation change | L5: Improve intersection radius at ramp terminus | M5: Auxiliary lanes - add left-turn lane | S5: 20
A6: ATH | B6: 10 | C6: ATH - Athens | F6: Ensuring drivers are licensed and fully competent | H6: Interchange design | I6: Grassed median - extend existing | J6: Dynamic message signs | L6: Installation of new lane on ramp | M6: Auxiliary lanes - add right-turn lane | S6: 25
A7: AUG | B7: 7 | C7: AUG - Auglaize | F7: Ensuring safer bicycle travel | H7: Intersection geometry | I7: Median crossover - close crossover | J7: Over height vehicle detection | K7: Roadside | L7: Interchange design - other | M7: Auxiliary lanes - add right-turn lane (free-flow) | S7: 30
A8: BEL | B8: 11 | C8: BEL - Belmont | D8: Data | F8: Improving information and decision support systems | H8: Intersection traffic control | I8: Median crossover - directional crossover | L8: Ramp closure | M8: Auxiliary lanes - add slip lane | S8: 35
A9: BRO | B9: 9 | C9: BRO - Brown | D9: Timely Data | F9: Improving motorcycle safety and increasing motorcycle awareness | H9: Lighting | I9: Median crossover - relocate existing | K9: Barrier end treatments (crash cushions, terminals) | L9: Ramp metering | M9: Auxiliary lanes - add two-way left-turn lane | S9: 40
A10: BUT | B10: 8 | C10: BUT - Butler | D10: Reliable Data | F10: Improving the design and operation of highway intersections | H10: Miscellaneous | I10: Median crossover - unspecified | K10: Barrier transitions | M10: Auxiliary lanes - extend acceleration/deceleration lane | S10: 45
A11: CAR | B11: 11 | C11: CAR - Carroll | D11: Comprehensive Data | F11: Increasing driver safety awareness | H11: Non-infrastructure | I11: Raised island - install new | K11: Barrier - cable | M11: Auxiliary lanes - extend existing left-turn lane | S11: 50
A12: CHP | B12: 7 | C12: CHP - Champaign | D12: Integrated Data and Analysis Systems | F12: Increasing safety enhancements in vehicles | H12: Parking | I12: Raised island - modify existing | K12: Barrier - concrete | M12: Auxiliary lanes - extend existing right-turn lane | S12: =S11+5 -> 55
A13: CLA | B13: 7 | C13: CLA - Clark | F13: Increasing seat belt use and improving airbag effectiveness | H13: Pedestrians and bicyclists | I13: Raised island - remove existing | K13: Barrier- metal | M13: Auxiliary lanes - miscellaneous/other/unspecified | S13: 60
A14: CLE | B14: 8 | C14: CLE - Clermont | D14: SeriousCrashTypes | F14: Instituting graduated licensing for younger drivers | H14: Railroad grade crossings | I14: Raised island - unspecified | K14: Barrier - other | M14: Auxiliary lanes - modify acceleration lane | S14: 65
A15: CLI | B15: 8 | C15: CLI - Clinton | D15: Roadway Departure | F15: Keeping drivers alert | H15: Roadside | K15: Barrier - removal | M15: Auxiliary lanes - modify auxiliary through lane | S15: 70
A16: COL | B16: 11 | C16: COL - Columbiana | D16: Intersection | F16: Keeping vehicles in the roadway | H16: Roadway | K16: Curb or curb and gutter | M16: Auxiliary lanes - modify free-flow turn lane
A17: COS | B17: 5 | C17: COS - Coshocton | D17: Highway Railroad Crossing | F17: Making truck travel safer | H17: Roadway delineation | K17: Drainage improvements | M17: Auxiliary lanes - modify left-turn lane offset
A18: CRA | B18: 3 | C18: CRA - Crawford | F18: Making walking and street crossing easier | H18: Roadway signs and traffic control | K18: Fencing | M18: Auxiliary lanes - modify right-turn lane offset
A19: CUY | B19: 12 | C19: CUY - Cuyahoga | F19: Minimizing the consequences of leaving the road | H19: Shoulder treatments | K19: Removal of roadside objects (trees, poles, etc.) | M19: Auxiliary lanes - modify turn lane storage
A20: DAR | B20: 7 | C20: DAR - Darke | D20: HighRiskDriversandBehaviors | F20: Reducing head-on and across-median crashes | H20: Speed management | K20: Roadside grading | M20: Auxiliary lanes - modify turn lane taper
A21: DEF | B21: 1 | C21: DEF - Defiance | D21: Impaired Drivers | F21: Reducing impaired driving | H21: Work Zone | K21: Roadside - other | M21: Auxiliary lanes - modify two-way left-turn lane
A22: DEL | B22: 6 | C22: DEL - Delaware | D22: Seat Belt | F22: Reducing vehicle-train crashes | M22: Intersection geometrics - miscellaneous/other/unspecified
A23: ERI | B23: 3 | C23: ERI - Erie | D23: Speed | F23: Sustaining proficiency in older drivers | M23: Intersection geometrics - modify intersection corner radius
A24: FAI | B24: 5 | C24: FAI - Fairfield | D24: Young Drivers | F24: Other | H24: Animal-related | I24: Intersection traffic control | J24: Lighting | K24: Roadway | M24: Intersection geometrics - modify skew angle
A25: FAY | B25: 6 | C25: FAY - Fayette | D25: Older Drivers | M25: Intersection geometrics - realignment to align offset cross streets
A26: FRA | B26: 6 | C26: FRA - Franklin | D26: Distracted Drivers | F26: Functional Class | I26: Intersection flashers - add "when flashing" warning sign-mounted | J26: Continuous roadway lighting | K26: Install / remove / modify passing zone | M26: Intersection geometrics - realignment to increase cross street offset
A27: FUL | B27: 2 | C27: FUL - Fulton | E27: 1 | F27: 1 - Interstates | I27: Intersection flashers - add advance emergency vehicle warning sign-mounted | J27: Intersection lighting | K27: Pavement surface - high friction surface | M27: Intersection geometrics - re-assign existing lane use
A28: GAL | B28: 10 | C28: GAL - Gallia | D28: SpecialVehiclesandRoadwayUsers | E28: 2 | F28: 2 - Other Freeways or Expressways | I28: Intersection flashers - add advance heavy vehicle warning sign-mounted | J28: Lighting - other | K28: Pavement surface - miscellaneous | M28: Intersection geometry - other
A29: GEA | B29: 12 | C29: GEA - Geauga | D29: Bicycle Riders | E29: 3 | F29: 3 - Other Principal Arterial Roadway | I29: Intersection flashers - add advance intersection warning sign-mounted | J29: Site lighting - horizontal curve | K29: Roadway narrowing (road diet, roadway reconfiguration) | M29: Splitter island - install on one or more approaches
A30: GRE | B30: 8 | C30: GRE - Greene | D30: Pedestrians | E30: 4 | F30: 4 - Minor Arterial Roadway | I30: Intersection flashers - add miscellaneous/other/unspecified | J30: Site lighting - intersection | K30: Roadway - other | M30: Splitter island - remove from one or more approaches
A31: GUE | B31: 5 | C31: GUE - Guernsey | D31: Commercial Vehicles | E31: 5 | F31: 5 - Major Collector Roadway | I31: Intersection flashers - add overhead (actuated) | J31: Site lighting - interchange | K31: Roadway - restripe to revise separation between opposing lanes and/or shoulder widths | M31: Splitter island - unspecified
A32: HAM | B32: 8 | C32: HAM - Hamilton | D32: Motorcycles | E32: 6 | F32: 6 - Minor Collector Roadway | I32: Intersection flashers - add overhead (continuous) | J32: Site lighting - pedestrian crosswalk | K32: Roadway widening - add lane(s) along segment | M32: Through lanes - add additional through lane
A33: HAN | B33: 1 | C33: HAN - Hancock | E33: 7 | F33: 7 - Local Roadway | I33: Intersection flashers - add stop sign-mounted | K33: Roadway widening - curve
A34: HAR | B34: 1 | C34: HAR - Hardin | E34: 99 | F34: 99 - Other Roadway | I34: Intersection flashers - modify existing | K34: Roadway widening - travel lanes
A35: HAS | B35: 11 | C35: HAS - Harrison | I35: Intersection flashers - remove existing | J35: Parking | K35: Rumble strips - center
A36: HEN | B36: 2 | C36: HEN - Henry | I36: Intersection signing - add basic advance warning | K36: Rumble strips - edge or shoulder
A37: HIG | B37: 9 | C37: HIG - Highland | I37: Intersection signing - add enhanced advance warning (double-up and/or oversize) | J37: Modify parking | K37: Rumble strips - transverse
A38: HOC | B38: 10 | C38: HOC - Hocking | I38: Intersection signing - add enhanced regulatory sign (double-up and/or oversize) | J38: Parking - other | K38: Rumble strips - unspecified or other
A39: HOL | B39: 11 | C39: HOL - Holmes | I39: Intersection signing - miscellaneous/other/unspecified | J39: Remove parking | K39: Superelevation / cross slope
A40: HUR | B40: 3 | C40: HUR - Huron | I40: Intersection signing - relocate existing regulatory sign | J40: Restrict parking
A41: JAC | B41: 9 | C41: JAC - Jackson | I41: Intersection traffic control - other | J41: Truck parking facilities
A42: JEF | B42: 11 | C42: JEF - Jefferson | I42: Modify control - all-way stop to roundabout
A43: KNO | B43: 5 | C43: KNO - Knox | I43: Modify control - modifications to roundabout | J43: Pedestrians and bicyclists | K43: Roadway delineation
A44: LAK | B44: 12 | C44: LAK - Lake | I44: Modify control - no control to roundabout
A45: LAW | B45: 9 | C45: LAW - Lawrence | I45: Modify control - no control to two-way stop | J45: Crosswalk | K45: Improve retroreflectivity
A46: LIC | B46: 5 | C46: LIC - Licking | I46: Modify control - remove right-turn yield | J46: Install new "smart" crosswalk | K46: Longitudinal pavement markings - new
A47: LOG | B47: 7 | C47: LOG - Logan | I47: Modify control - reverse priority of stop condition | J47: Install new crosswalk | K47: Longitudinal pavement markings - remarking
A48: LOR | B48: 3 | C48: LOR - Lorain | I48: Modify control - traffic signal to roundabout | J48: Install sidewalk | K48: Delineators post-mounted or on barrier
A49: LUC | B49: 2 | C49: LUC - Lucas | I49: Modify control - two-way stop to all-way stop | J49: Medians and pedestrian refuge areas | K49: Raised pavement markers
A50: MAD | B50: 6 | C50: MAD - Madison | I50: Modify control - two-way stop to signal operation | J50: Miscellaneous pedestrians and bicyclists | K50: Roadway delineation - other
A51: MAH | B51: 4 | C51: MAH - Mahoning | I51: Modify control - two-way stop to roundabout | J51: Modify existing crosswalk
A52: MAR | B52: 6 | C52: MAR - Marion | I52: Modify control - two-way yield to two-way stop | J52: Pedestrian beacons
A53: MED | B53: 3 | C53: MED - Medina | I53: Pavement Markings - add advance signal ahead | J53: Pedestrian bridge | K53: Roadway signs and traffic control
A54: MEG | B54: 10 | C54: MEG - Meigs | I54: Pavement markings - add advance stop ahead | J54: Pedestrian signal
A55: MER | B55: 7 | C55: MER - Mercer | I55: Pavement markings - add dashed edge line along mainline | J55: Pedestrian signal - audible device | K55: Curve-related warning signs and flashers
A56: MIA | B56: 7 | C56: MIA - Miami | I56: Pavement markings - add lane use symbols | J56: Pedestrian signal - Pedestrian Hybrid Beacon | K56: Sign sheeting - upgrade or replacement
A57: MOE | B57: 10 | C57: MOE - Monroe | I57: Pavement markings - add stop line | J57: Pedestrian signal - install new at intersection | K57: Roadway signs and traffic control - other
A58: MOT | B58: 7 | C58: MOT - Montgomery | I58: Pavement markings - add yield line | J58: Pedestrian signal - install new at non-intersection location | K58: Roadway signs (including post) - new or updated
A59: MRG | B59: 10 | C59: MRG - Morgan | I59: Pavement markings - miscellaneous/other/unspecified | J59: Pedestrian signal - modify existing
A60: MRW | B60: 6 | C60: MRW - Morrow | I60: Pavement markings - refresh existing pavement markings | J60: Pedestrian signal - remove existing
A61: MUS | B61: 5 | C61: MUS - Muskingum | I61: Modify traffic signal - add additional signal heads | J61: Pedestrian warning signs - add/modify flashers
A62: NOB | B62: 10 | C62: NOB - Noble | I62: Modify traffic signal - add backplates | J62: Pedestrian warning signs - overhead
A63: OTT | B63: 2 | C63: OTT - Ottawa | I63: Modify traffic signal - add backplates with retroreflective borders
A64: PAU | B64: 1 | C64: PAU - Paulding | I64: Modify traffic signal - add closed loop system | J64: Railroad grade crossings
A65: PER | B65: 5 | C65: PER - Perry | I65: Modify traffic signal - add emergency vehicle preemption
A66: PIC | B66: 6 | C66: PIC - Pickaway | I66: Modify traffic signal - add flashing yellow arrow | J66: Grade separation
A67: =LEFT(C67,3) -> PIK | B67: 9 | C67: PIK - Pike | I67: Modify traffic signal - add long vehicle detection | J67: Model enforcement activity
A68: POR | B68: 4 | C68: POR - Portage | I68: Modify traffic signal - add railroad preemption | J68: Protective devices
A69: PRE | B69: 8 | C69: PRE - Preble | I69: Modify traffic signal - add wireless system | J69: Railroad grade crossing gates
A70: PUT | B70: 1 | C70: PUT - Putnam | I70: Modify traffic signal - miscellaneous/other/unspecified | J70: Railroad grade crossing signing
A71: RIC | B71: 3 | C71: RIC - Richland | I71: Modify traffic signal - modernization/replacement | J71: Railroad grade crossings - other | K71: Speed management
A72: ROS | B72: 9 | C72: ROS - Ross | I72: Modify traffic signal - modify signal mounting (spanwire to mast arm) | J72: Surface treatment
A73: SAN | B73: 2 | C73: SAN - Sandusky | I73: Modify traffic signal - remove existing signal | J73: Upgrade railroad crossing signal | K73: Modify speed limit
A74: SCI | B74: 9 | C74: SCI - Scioto | I74: Modify traffic signal - replace existing indications (incandescent-to-LED and/or 8-to-12 inch dia.) | J74: Widen crossing for additional lane | K74: Radar speed signs
A75: SEN | B75: 2 | C75: SEN - Seneca | I75: Modify traffic signal timing - left-turn phasing (permissive to protected/permissive) | K75: Speed detection system / truck warning
A76: SHE | B76: 7 | C76: SHE - Shelby | I76: Modify traffic signal timing - left-turn phasing (permissive to protected-only) | K76: Speed management - other
A77: STA | B77: 4 | C77: STA - Stark | I77: Modify traffic signal timing - adjust clearance interval (yellow change and/or all-red) | K77: Traffic calming feature
A78: SUM | B78: 4 | C78: SUM - Summit | I78: Modify traffic signal timing - general retiming
A79: TRU | B79: 4 | C79: TRU - Trumbull | I79: Modify traffic signal timing - signal coordination
A80: TUS | B80: 11 | C80: TUS - Tuscarawas | I80: Systemic improvements - signal-controlled
A81: UNI | B81: 6 | C81: UNI - Union | I81: Systemic improvements - stop-controlled | J81: Miscellaneous
A82: VAN | B82: 1 | C82: VAN - Van Wert
A83: VIN | B83: 10 | C83: VIN - Vinton
A84: WAR | B84: 8 | C84: WAR - Warren
A85: WAS | B85: 10 | C85: WAS - Washington | H85: Non-infrastructure | I85: Shoulder treatments | J85: Work Zone
A86: WAY | B86: 3 | C86: WAY - Wayne | H86: Educational efforts | I86: Widen shoulder – paved or other
A87: WIL | B87: 2 | C87: WIL - Williams | H87: Enforcement | I87: Pave existing shoulders
A88: WOO | B88: 2 | C88: WOO - Wood | H88: Data/traffic records | I88: Shoulder grading
A89: WYA | B89: 1 | C89: WYA - Wyandot | H89: Non-infrastructure - other | I89: Shoulder treatments - other
H90: Outreach
H91: Road safety audits
H92: Training and workforce development
H93: Transportation safety planning

Sheet RSI_Data (hidden)
E1: =F1/G1 -> 36160.35817 | F1: =SUBTOTAL(9,F3:F86584) -> 48101774045 | G1: =SUBTOTAL(9,G3:G86584) -> 1330235
A2: DISTRICT_NBR | B2: NLF_COUNTY_CD | C2: URBAN_AREA | D2: FREEWAY_IND | E2: CRASH_TYPE_CD | F2: CRASH_COST_NBR | G2: Crash_Count | J2: Select
A3: 3 | B3: LOR | C3: Yes | D3: No | E3: Left Turn | F3: 45052452 | G3: 1075 | J3: --CRASH_YR,
A4: 7 | B4: DAR | C4: Yes | D4: No | E4: Unknown | F4: 11008 | G4: 1 | J4: DISTRICT_NBR,
A5: 3 | B5: MED | C5: Yes | D5: No | E5: Backing | F5: 220160 | G5: 20 | J5: NLF_COUNTY_CD,
A6: 5 | B6: MUS | C6: No | D6: Yes | E6: Left Turn | F6: 83076 | G6: 2
A7: 9 | B7: PIK | C7: Yes | D7: No | E7: Overturning | F7: 525288 | G7: 11 | J7: --CASE WHEN ODOT_MAINTAINED_HWY_IND = 'Y' THEN 'Yes'
A8: 12 | B8: CUY | C8: No | D8: No | E8: Fixed Object | F8: 5018074 | G8: 71 | J8: --ELSE 'No' END AS ODOT_MAINTAINED_HWY_IND,
A9: 7 | B9: SHE | C9: Yes | D9: No | E9: Animal | F9: 11008 | G9: 1
A10: 9 | B10: LAW | C10: Yes | D10: Yes | E10: Sideswipe - Passing | F10: 11008 | G10: 1 | J10: CASE WHEN AREA_CODE = 'CLEVE' THEN 'Yes'
A11: 12 | B11: CUY | C11: Yes | D11: No | E11: Right Turn | F11: 2339372 | G11: 129 | J11: WHEN AREA_CODE = 'YOUNG' THEN 'Yes'
A12: 10 | B12: VIN | C12: No | D12: No | E12: Sideswipe - Passing | F12: 1729050 | G12: 31 | J12: WHEN AREA_CODE = 99999 THEN 'No'
A13: 7 | B13: LOG | C13: Yes | D13: No | E13: Backing | F13: 2554769 | G13: 166 | J13: ELSE 'Yes' END AS URBAN_AREA,
A14: 11 | B14: BEL | C14: No | D14: No | E14: Sideswipe - Passing | F14: 2963269 | G14: 136
A15: 9 | B15: ROS | C15: Yes | D15: Yes | E15: Fixed Object | F15: 7108443 | G15: 137 | J15: --CASE WHEN FUNCTIONAL_CLASS_CD = 1 THEN 'Interstate Route'
A16: 5 | B16: LIC | C16: Yes | D16: Yes | E16: Rear End | F16: 7211431 | G16: 241 | J16: --WHEN FUNCTIONAL_CLASS_CD = 2 THEN 'Other Freeways or Expressways'
A17: 11 | B17: BEL | C17: Yes | D17: Yes | E17: Other Object | F17: 506196 | G17: 37 | J17: --WHEN FUNCTIONAL_CLASS_CD = 3 THEN 'Other Principal Arterial Roads'
A18: 3 | B18: LOR | C18: Yes | D18: Yes | E18: Parked Vehicle | F18: 1231626 | G18: 8 | J18: --WHEN FUNCTIONAL_CLASS_CD = 4 THEN 'Minor Arterial Roads'
A19: 3 | B19: MED | C19: No | D19: No | E19: Overturning | F19: 7945660 | G19: 66 | J19: --WHEN FUNCTIONAL_CLASS_CD = 5 THEN 'Major Collector Roads'
A20: 11 | B20: COL | C20: Yes | D20: No | E20: Sideswipe - Passing | F20: 2792301 | G20: 135 | J20: --WHEN FUNCTIONAL_CLASS_CD = 6 THEN 'Minor Collector Roads'
A21: 1 | B21: DEF | C21: Yes | D21: No | E21: Head On | F21: 1221253 | G21: 24 | J21: --WHEN FUNCTIONAL_CLASS_CD = 7 THEN 'Local Roads' END AS FUNCTIONAL_CLASS_CD,
A22: 1 | B22: DEF | C22: Yes | D22: No | E22: Train | F22: 11008 | G22: 1
A23: 8 | B23: PRE | C23: No | D23: Yes | E23: Animal | F23: 1045416 | G23: 77 | J23: CASE WHEN FREEWAY_IND = 'N' THEN 'No'
A24: 7 | B24: DAR | C24: Yes | D24: No | E24: Unknown | F24: 22016 | G24: 2 | J24: WHEN FREEWAY_IND = 'Y' THEN 'Yes' END AS FREEWAY_IND,
A25: 7 | B25: MOT | C25: Yes | D25: No | E25: Sideswipe - Passing | F25: 141977034 | G25: 6122
A26: 3 | B26: WAY | C26: Yes | D26: No | E26: Parked Vehicle | F26: 81872 | G26: 4 | J26: CASE WHEN CRASH_TYPE_CD = 0 THEN 'Unknown'
A27: 2 | B27: SAN | C27: Yes | D27: No | E27: Right Turn | F27: 695965 | G27: 13 | J27: WHEN CRASH_TYPE_CD = 1 THEN 'Head On'
A28: 10 | B28: NOB | C28: No | D28: No | E28: Head On | F28: 3049878 | G28: 9 | J28: WHEN CRASH_TYPE_CD = 2 THEN 'Rear End'
A29: 6 | B29: UNI | C29: No | D29: No | E29: Other Object | F29: 601881 | G29: 10 | J29: WHEN CRASH_TYPE_CD = 3 THEN 'Backing'
A30: 3 | B30: HUR | C30: Yes | D30: No | E30: Overturning | F30: 105092 | G30: 4 | J30: WHEN CRASH_TYPE_CD = 4 THEN 'Sideswipe - Meeting'
A31: 2 | B31: OTT | C31: No | D31: No | E31: Other Non-Collision | F31: 2278246 | G31: 83 | J31: WHEN CRASH_TYPE_CD = 5 THEN 'Sideswipe - Passing'
A32: 10 | B32: MEG | C32: No | D32: No | E32: Sideswipe - Meeting | F32: 22016 | G32: 2 | J32: WHEN CRASH_TYPE_CD = 6 THEN 'Angle'
A33: 7 | B33: CLA | C33: Yes | D33: No | E33: Animal | F33: 6024697 | G33: 412 | J33: WHEN CRASH_TYPE_CD = 7 THEN 'Parked Vehicle'
A34: 6 | B34: FRA | C34: Yes | D34: Yes | E34: Parked Vehicle | F34: 11985715 | G34: 223 | J34: WHEN CRASH_TYPE_CD = 8 THEN 'Pedestrian'
A35: 6 | B35: FRA | C35: Yes | D35: No | E35: Other Non-Collision | F35: 70864 | G35: 3 | J35: WHEN CRASH_TYPE_CD = 9 THEN 'Animal'
A36: 10 | B36: WAS | C36: Yes | D36: No | E36: Sideswipe - Passing | F36: 1235476 | G36: 57 | J36: WHEN CRASH_TYPE_CD = 10 THEN 'Train'
A37: 2 | B37: WIL | C37: Yes | D37: No | E37: Fixed Object | F37: 70864 | G37: 3 | J37: WHEN CRASH_TYPE_CD = 11 THEN 'Pedalcycles'
A38: 6 | B38: DEL | C38: Yes | D38: Yes | E38: Other Non-Collision | F38: 460960 | G38: 35 | J38: WHEN CRASH_TYPE_CD = 12 THEN 'Other Non-Vehicle'
A39: 6 | B39: MAD | C39: Yes | D39: No | E39: Animal | F39: 235984 | G39: 18 | J39: WHEN CRASH_TYPE_CD = 13 THEN 'Fixed Object'
A40: 7 | B40: MIA | C40: No | D40: No | E40: Fixed Object | F40: 44899837 | G40: 825 | J40: WHEN CRASH_TYPE_CD = 14 THEN 'Other Object'
A41: 6 | B41: UNI | C41: No | D41: Yes | E41: Angle | F41: 1098498 | G41: 7 | J41: WHEN CRASH_TYPE_CD = 15 THEN 'Falling From Or In Vehicle'
A42: 6 | B42: MAR | C42: No | D42: No | E42: Right Turn | F42: 450984 | G42: 23 | J42: WHEN CRASH_TYPE_CD = 16 THEN 'Overturning'
A43: 3 | B43: RIC | C43: Yes | D43: No | E43: Sideswipe - Passing | F43: 571040 | G43: 45 | J43: WHEN CRASH_TYPE_CD = 17 THEN 'Other Non-Collision'
A44: 8 | B44: BUT | C44: Yes | D44: No | E44: Backing | F44: 588240 | G44: 50 | J44: WHEN CRASH_TYPE_CD = 18 THEN 'Left Turn'
A45: 3 | B45: HUR | C45: No | D45: No | E45: Overturning | F45: 6609868 | G45: 65 | J45: WHEN CRASH_TYPE_CD = 19 THEN 'Right Turn' END AS CRASH_TYPE_CD,
A46: 3 | B46: ERI | C46: No | D46: Yes | E46: Pedestrian | F46: 502809 | G46: 1
A47: 1 | B47: DEF | C47: No | D47: No | E47: Pedalcycles | F47: 767861 | G47: 5 | J47: sum(CASE WHEN CRASH_SEVERITY_CD = '1' THEN 502809
A48: 8 | B48: CLI | C48: No | D48: Yes | E48: Sideswipe - Passing | F48: 4286743 | G48: 160 | J48: WHEN CRASH_SEVERITY_CD = '2' THEN 502809
A49: 1 | B49: HAN | C49: Yes | D49: No | E49: Angle | F49: 724636 | G49: 32 | J49: WHEN CRASH_SEVERITY_CD = '3' THEN 72068
A50: 10 | B50: ATH | C50: No | D50: Yes | E50: Other Non-Collision | F50: 70864 | G50: 3 | J50: WHEN CRASH_SEVERITY_CD = '4' THEN 48848
A51: 3 | B51: HUR | C51: Yes | D51: No | E51: Right Turn | F51: 83076 | G51: 2 | J51: ELSE 11008 END ) AS CRASH_COST_NBR -- 2023 VALUES
A52: 7 | B52: DAR | C52: No | D52: No | E52: Other Non-Collision | F52: 2087895 | G52: 39
A53: 10 | B53: WAS | C53: No | D53: No | E53: Overturning | F53: 12975880 | G53: 85 | J53: ,count(DOCUMENT_NBR) as Crash_Count
A54: 5 | B54: KNO | C54: Yes | D54: No | E54: Angle | F54: 81872 | G54: 4
A55: 7 | B55: AUG | C55: Yes | D55: No | E55: Head On | F55: 281048 | G55: 11 | J55: From warehouse.dbo.oh1_cr_crash_details
A56: 8 | B56: BUT | C56: Yes | D56: Yes | E56: Left Turn | F56: 689204 | G56: 28 | J56: where CRASH_YR BETWEEN 2019 AND 2023
A57: 2 | B57: FUL | C57: No | D57: Yes | E57: Animal | F57: 1431728 | G57: 101 | J57: Group by --CRASH_YR,
A58: 2 | B58: HEN | C58: Yes | D58: No | E58: Rear End | F58: 142932 | G58: 4 | J58: DISTRICT_NBR,
A59: 10 | B59: WAS | C59: Yes | D59: No | E59: Right Turn | F59: 1493820 | G59: 95 | J59: NLF_COUNTY_CD,
A60: 10 | B60: MRG | C60: No | D60: No | E60: Angle | F60: 4684738 | G60: 69 | J60: AREA_CODE,
A61: 3 | B61: MED | C61: Yes | D61: No | E61: Angle | F61: 36730443 | G61: 1095 | J61: --ODOT_MAINTAINED_HWY_IND,
A62: 10 | B62: ATH | C62: No | D62: Yes | E62: Angle | F62: 83076 | G62: 2 | J62: --FUNCTIONAL_CLASS_CD,
A63: 11 | B63: TUS | C63: No | D63: Yes | E63: Other Object | F63: 275200 | G63: 25 | J63: FREEWAY_IND,
A64: 6 | B64: MRW | C64: Yes | D64: No | E64: Fixed Object | F64: 11008 | G64: 1 | J64: CRASH_TYPE_CD
A65: 8 | B65: GRE | C65: Yes | D65: No | E65: Left Turn | F65: 66048 | G65: 6
A66: 4 | B66: MAH | C66: Yes | D66: No | E66: Sideswipe - Passing | F66: 149124 | G66: 8
A67: 4 | B67: SUM | C67: Yes | D67: No | E67: Backing | F67: 2823552 | G67: 229
A68: 5 | B68: GUE | C68: Yes | D68: No | E68: Pedestrian | F68: 2923233 | G68: 11
A69: 4 | B69: ATB | C69: No | D69: No | E69: Left Turn | F69: 8742774 | G69: 153
A70: 4 | B70: POR | C70: Yes | D70: No | E70: Sideswipe - Meeting | F70: 562665 | G70: 3
A71: 3 | B71: HUR | C71: Yes | D71: No | E71: Backing | F71: 66048 | G71: 6
A72: 8 | B72: BUT | C72: Yes | D72: No | E72: Left Turn | F72: 22693483 | G72: 448
A73: 11 | B73: CAR | C73: Yes | D73: No | E73: Left Turn | F73: 574877 | G73: 2
A74: 7 | B74: MIA | C74: Yes | D74: Yes | E74: Head On | F74: 83076 | G74: 2
A75: 7 | B75: MOT | C75: Yes | D75: No | E75: Animal | F75: 771420 | G75: 50
A76: 6 | B76: MAD | C76: No | D76: No | E76: Sideswipe - Meeting | F76: 141728 | G76: 6
A77: 4 | B77: STA | C77: Yes | D77: No | E77: Rear End | F77: 189760471 | G77: 8065
A78: 3 | B78: ERI | C78: Yes | D78: No | E78: Animal | F78: 368080 | G78: 30
A79: 8 | B79: BUT | C79: Yes | D79: No | E79: Animal | F79: 171140 | G79: 10
A80: 1 | B80: HAR | C80: Yes | D80: No | E80: Parked Vehicle | F80: 22016 | G80: 2
A81: 1 | B81: ALL | C81: Yes | D81: No | E81: Sideswipe - Passing | F81: 22989005 | G81: 969
A82: 8 | B82: CLE | C82: No | D82: No | E82: Fixed Object | F82: 89152013 | G82: 1650
A83: 8 | B83: CLI | C83: Yes | D83: No | E83: Animal | F83: 2153837 | G83: 142
A84: 3 | B84: WAY | C84: Yes | D84: No | E84: Overturning | F84: 1099702 | G84: 5
A85: 1 | B85: ALL | C85: Yes | D85: Yes | E85: Right Turn | F85: 81872 | G85: 4
A86: 1 | B86: WYA | C86: Yes | D86: No | E86: Other Object | F86: 33024 | G86: 3
A87: 3 | B87: HUR | C87: Yes | D87: No | E87: Rear End | F87: 1997886 | G87: 48
A88: 1 | B88: PAU | C88: No | D88: Yes | E88: Parked Vehicle | F88: 11008 | G88: 1
A89: 3 | B89: LOR | C89: Yes | D89: No | E89: Overturning | F89: 5461887 | G89: 45
A90: 7 | B90: CHP | C90: No | D90: No | E90: Rear End | F90: 10029162 | G90: 189
A91: 1 | B91: DEF | C91: No | D91: No | E91: Animal | F91: 24053327 | G91: 1823
A92: 10 | B92: GAL | C92: Yes | D92: No | E92: Parked Vehicle | F92: 33024 | G92: 3
A93: 7 | B93: CLA | C93: Yes | D93: No | E93: Pedalcycles | F93: 12166686 | G93: 76
A94: 2 | B94: WIL | C94: No | D94: Yes | E94: Other Object | F94: 165120 | G94: 15
A95: 1 | B95: PUT | C95: No | D95: No | E95: Rear End | F95: 2899854 | G95: 89
A96: 2 | B96: OTT | C96: Yes | D96: No | E96: Backing | F96: 1172868 | G96: 101
A97: 11 | B97: COL | C97: Yes | D97: Yes | E97: Right Turn | F97: 22016 | G97: 2
A98: 7 | B98: MER | C98: Yes | D98: No | E98: Animal | F98: 2446065 | G98: 163
A99: 1 | B99: ALL | C99: Yes | D99: Yes | E99: Rear End | F99: 5627708 | G99: 128
A100: 5 | B100: MUS | C100: No | D100: Yes | E100: Fixed Object | F100: 7941161 | G100: 242
A101: 6 | B101: FRA | C101: No | D101: No | E101: Other Object | F101: 48848 | G101: 1
A102: 6 | B102: UNI | C102: Yes | D102: Yes | E102: Animal | F102: 749404 | G102: 48
A103: 3 | B103: ERI | C103: Yes | D103: No | E103: Pedalcycles | F103: 611513 | G103: 4
A104: 6 | B104: DEL | C104: No | D104: Yes | E104: Angle | F104: 188168 | G104: 6
A105: 1 | B105: VAN | C105: Yes | D105: No | E105: Right Turn | F105: 83076 | G105: 2
A106: 8 | B106: BUT | C106: Yes | D106: No | E106: Rear End | F106: 1681472 | G106: 74
A107: 2 | B107: SAN | C107: No | D107: No | E107: Animal | F107: 15402772 | G107: 1204
A108: 3 | B108: MED | C108: Yes | D108: Yes | E108: Backing | F108: 22016 | G108: 2
A109: 9 | B109: JAC | C109: Yes | D109: Yes | E109: Right Turn | F109: 11008 | G109: 1
A110: 12 | B110: CUY | C110: Yes | D110: Yes | E110: Angle | F110: 12984995 | G110: 346
A111: 11 | B111: COL | C111: Yes | D111: No | E111: Fixed Object | F111: 7063167 | G111: 208
A112: 7 | B112: LOG | C112: Yes | D112: No | E112: Overturning | F112: 1580495 | G112: 4
A113: 3 | B113: RIC | C113: Yes | D113: No | E113: Animal | F113: 357072 | G113: 29
A114: 11 | B114: JEF | C114: No | D114: No | E114: Animal | F114: 3854335 | G114: 149
A115: 9 | B115: SCI | C115: No | D115: Yes | E115: Head On | F115: 502809 | G115: 1
A116: 7 | B116: LOG | C116: Yes | D116: No | E116: Left Turn | F116: 689032 | G116: 19
A117: 6 | B117: DEL | C117: No | D117: Yes | E117: Right Turn | F117: 292056 | G117: 12
A118: 7 | B118: MOT | C118: No | D118: No | E118: Pedalcycles | F118: 1243838 | G118: 7
A119: 3 | B119: WAY | C119: Yes | D119: No | E119: Pedestrian | F119: 72068 | G119: 1
A120: 0 | B120: UNI | C120: No | D120: No | E120: Sideswipe - Passing | F120: 11008 | G120: 1
A121: 3 | B121: ASD | C121: No | D121: Yes | E121: Fixed Object | F121: 5405153 | G121: 254
A122: 8 | B122: GRE | C122: No | D122: Yes | E122: Unknown | F122: 77056 | G122: 7
A123: 6 | B123: PIC | C123: Yes | D123: No | E123: Parked Vehicle | F123: 132096 | G123: 12
A124: 2 | B124: OTT | C124: Yes | D124: No | E124: Sideswipe - Passing | F124: 44032 | G124: 4
A125: 10 | B125: MOE | C125: Yes | D125: No | E125: Sideswipe - Passing | F125: 66048 | G125: 6
A126: 3 | B126: RIC | C126: Yes | D126: No | E126: Head On | F126: 59856 | G126: 2
A127: 9 | B127: HIG | C127: Yes | D127: No | E127: Pedestrian | F127: 1489282 | G127: 10
A128: 7 | B128: AUG | C128: No | D128: No | E128: Head On | F128: 5475753 | G128: 33
A129: 4 | B129: SUM | C129: No | D129: Yes | E129: Other Object | F129: 121088 | G129: 11
A130: 7 | B130: AUG | C130: Yes | D130: No | E130: Fixed Object | F130: 2054937 | G130: 77
A131: 3 | B131: LOR | C131: No | D131: No | E131: Angle | F131: 34713519 | G131: 498
A132: 11 | B132: CAR | C132: Yes | D132: No | E132: Backing | F132: 33024 | G132: 3
A133: 8 | B133: PRE | C133: No | D133: No | E133: Sideswipe - Passing | F133: 5810650 | G133: 138
A134: 5 | B134: LIC | C134: Yes | D134: Yes | E134: Animal | F134: 902140 | G134: 55
A135: 9 | B135: ROS | C135: No | D135: No | E135: Parked Vehicle | F135: 2206866 | G135: 53
A136: 9 | B136: ROS | C136: Yes | D136: Yes | E136: Left Turn | F136: 33024 | G136: 3
A137: 5 | B137: PER | C137: No | D137: No | E137: Pedestrian | F137: 3624755 | G137: 11
A138: 4 | B138: SUM | C138: Yes | D138: No | E138: Left Turn | F138: 10931778 | G138: 359
A139: 7 | B139: AUG | C139: Yes | D139: No | E139: Left Turn | F139: 1074709 | G139: 26
A140: 11 | B140: BEL | C140: Yes | D140: No | E140: Unknown | F140: 22016 | G140: 2
A141: 8 | B141: WAR | C141: Yes | D141: Yes | E141: Sideswipe - Passing | F141: 59856 | G141: 2
A142: 2 | B142: OTT | C142: No | D142: Yes | E142: Fixed Object | F142: 3655503 | G142: 90
A143: 11 | B143: COL | C143: Yes | D143: No | E143: Pedestrian | F143: 216204 | G143: 3
A144: 3 | B144: WAY | C144: Yes | D144: Yes | E144: Rear End | F144: 1698897 | G144: 37
A145: 7 | B145: LOG | C145: No | D145: Yes | E145: Backing | F145: 83076 | G145: 2
A146: 2 | B146: WOO | C146: Yes | D146: No | E146: Fixed Object | F146: 1032053 | G146: 29
A147: 1 | B147: DEF | C147: Yes | D147: Yes | E147: Backing | F147: 33024 | G147: 3
A148: 9 | B148: ROS | C148: No | D148: Yes | E148: Overturning | F148: 668961 | G148: 5
A149: 4 | B149: SUM | C149: Yes | D149: Yes | E149: Sideswipe - Passing | F149: 400932 | G149: 24
A150: 5 | B150: LIC | C150: No | D150: Yes | E150: Fixed Object | F150: 13916137 | G150: 381
A151: 6 | B151: FRA | C151: No | D151: No | E151: Pedestrian | F151: 1652563 | G151: 5
A152: 3 | B152: ERI | C152: Yes | D152: No | E152: Backing | F152: 471968 | G152: 36
A153: 6 | B153: FRA | C153: Yes | D153: No | E153: Rear End | F153: 674437484 | G153: 22479
A154: 9 | B154: HIG | C154: Yes | D154: No | E154: Other Non-Collision | F154: 33024 | G154: 3
A155: 7 | B155: AUG | C155: Yes | D155: No | E155: Other Non-Collision | F155: 121088 | G155: 11
A156: 7 | B156: LOG | C156: Yes | D156: Yes | E156: Overturning | F156: 72068 | G156: 1
A157: 1 | B157: VAN | C157: No | D157: No | E157: Angle | F157: 11302743 | G157: 131
A158: 4 | B158: STA | C158: Yes | D158: No | E158: Angle | F158: 16806306 | G158: 472
A159: 3 | B159: RIC | C159: Yes | D159: No | E159: Rear End | F159: 652568 | G159: 31
A160: 3 | B160: CRA | C160: No | D160: Yes | E160: Overturning | F160: 119712 | G160: 4
A161: 8 | B161: BUT | C161: Yes | D161: No | E161: Parked Vehicle | F161: 14668743 | G161: 514
A162: 2 | B162: SAN | C162: No | D162: No | E162: Backing | F162: 1008780 | G162: 75
A163: 3 | B163: CRA | C163: Yes | D163: Yes | E163: Sideswipe - Passing | F163: 121088 | G163: 11
A164: 4 | B164: POR | C164: No | D164: Yes | E164: Unknown | F164: 215172 | G164: 14
A165: 5 | B165: LIC | C165: Yes | D165: No | E165: Sideswipe - Passing | F165: 655320 | G165: 45
A166: 1 | B166: DEF | C166: Yes | D166: Yes | E166: Fixed Object | F166: 1967442 | G166: 45
A167: 7 | B167: MOT | C167: No | D167: No | E167: Unknown | F167: 208980 | G167: 10
A168: 4 | B168: ATB | C168: Yes | D168: No | E168: Backing | F168: 573448 | G168: 41
A169: 8 | B169: CLI | C169: Yes | D169: Yes | E169: Rear End | F169: 99072 | G169: 9
A170: 8 | B170: BUT | C170: Yes | D170: No | E170: Unknown | F170: 2070351 | G170: 16
A171: 3 | B171: WAY | C171: Yes | D171: No | E171: Left Turn | F171: 83076 | G171: 2
A172: 9 | B172: ADA | C172: No | D172: No | E172: Other Non-Collision | F172: 2670168 | G172: 48
A173: 3 | B173: MED | C173: No | D173: Yes | E173: Angle | F173: 44032 | G173: 4
A174: 5 | B174: GUE | C174: Yes | D174: Yes | E174: Sideswipe - Passing | F174: 4678440 | G174: 157
A175: 5 | B175: FAI | C175: Yes | D175: No | E175: Angle | F175: 210184 | G175: 8
A176: 4 | B176: POR | C176: Yes | D176: Yes | E176: Other Non-Collision | F176: 70864 | G176: 3
A177: 5 | B177: PER | C177: No | D177: No | E177: Pedalcycles | F177: 657953 | G177: 4
A178: 8 | B178: PRE | C178: No | D178: Yes | E178: Unknown | F178: 77056 | G178: 7
A179: 9 | B179: HIG | C179: No | D179: No | E179: Fixed Object | F179: 67737377 | G179: 1047
A180: 6 | B180: MRW | C180: No | D180: Yes | E180: Pedestrian | F180: 502809 | G180: 1
A181: 2 | B181: SEN | C181: Yes | D181: No | E181: Other Object | F181: 259032 | G181: 9
A182: 3 | B182: MED | C182: Yes | D182: No | E182: Other Object | F182: 204164 | G182: 13
A183: 9 | B183: LAW | C183: Yes | D183: Yes | E183: Right Turn | F183: 312868 | G183: 16
A184: 7 | B184: SHE | C184: Yes | D184: No | E184: Unknown | F184: 11008 | G184: 1
A185: 3 | B185: CRA | C185: Yes | D185: Yes | E185: Other Object | F185: 33024 | G185: 3
A186: 2 | B186: OTT | C186: No | D186: No | E186: Head On | F186: 6166267 | G186: 32
A187: 2 | B187: OTT | C187: No | D187: No | E187: Train | F187: 22016 | G187: 2
A188: 5 | B188: FAI | C188: No | D188: No | E188: Overturning | F188: 12082578 | G188: 85
A189: 4 | B189: SUM | C189: Yes | D189: No | E189: Backing | F189: 34787503 | G189: 2570
A190: 6 | B190: DEL | C190: No | D190: No | E190: Overturning | F190: 7226938 | G190: 56
A191: 3 | B191: LOR | C191: Yes | D191: No | E191: Sideswipe - Passing | F191: 7008471 | G191: 361
A192: 8 | B192: PRE | C192: No | D192: Yes | E192: Backing | F192: 66048 | G192: 6
A193: 7 | B193: MIA | C193: No | D193: No | E193: Overturning | F193: 6884539 | G193: 51
A194: 3 | B194: CRA | C194: Yes | D194: No | E194: Overturning | F194: 1402594 | G194: 9
A195: 12 | B195: LAK | C195: Yes | D195: No | E195: Unknown | F195: 468012 | G195: 19
A196: 8 | B196: PRE | C196: Yes | D196: No | E196: Sideswipe - Passing | F196: 673949 | G196: 11
A197: 12 | B197: GEA | C197: No | D197: Yes | E197: Rear End | F197: 2078951 | G197: 16
A198: 10 | B198: NOB | C198: No | D198: Yes | E198: Rear End | F198: 787469 | G198: 11
A199: 2 | B199: WOO | C199: Yes | D199: Yes | E199: Head On | F199: 916985 | G199: 13
A200: 9 | B200: LAW | C200: Yes | D200: Yes | E200: Parked Vehicle | F200: 94084 | G200: 3
... 6728 more rows

Sheet Import (hidden)
A1: Application ID: | C1: =IF('Safety Application'!A115="","Not Assigned",'Safety Application'!A115) -> 202503D08-01
A4: General Application Data
A5: https://extranet.dot.state.oh.us/divisions/Planning/plan/HSIP_applications/Lists/AppData/ImportView.aspx
A6: Title | B6: Cycle | C6: AppID | D6: District | E6: CountyCd | F6: Sponsor | G6: Project Name | H6: PID | I6: ProjectManager | J6: PM_Phone | K6: PM_Email | L6: Applicant_Name | M6: Applicant_Title | N6: Applicant_Phone | O6: ApplicationDt | P6: RouteNbr | Q6: RouteName | R6: Blog | S6: Elog | T6: FolderPath
A7: =C7 -> 202503D08-01 | B7: =LEFT(C7,6) -> 202503 | C7: =C1 -> 202503D08-01 | D7: ='Safety Application'!C10 -> 8 | E7: =LEFT('Safety Application'!H10,3) -> WAR | F7: =IF('Safety Application'!D2="","",'Safety Application'!D2) -> ODOT | G7: =IF('Safety Application'!D3="","",'Safety Application'!D3) -> WAR US 22 19.24 (Clarksville Rd) | H7: =IF('Safety Application'!D4="","",'Safety Application'!D4) -> TBD | I7: =IF('Safety Application'!D5="","",'Safety Application'!D5) -> Tom Mazza | J7: =IF('Safety Application'!D6="","",'Safety Application'!D6) -> 513-933-6591 | K7: =IF('Safety Application'!D7="","",'Safety Application'!D7) -> Thomas.Mazza@dot.ohio.gov | L7: =IF('Safety Application'!A106="","",'Safety Application'!A106) -> Tom Mazza | M7: =IF('Safety Application'!F106="","",'Safety Application'!F106) -> Traffic Studies Engineer | N7: ='Safety Application'!I106 -> 513-933-6591 | O7: =IF('Safety Application'!I108="","",MONTH('Safety Application'!I108)&"/"&DAY('Safety Application'!I108)&"/"&YEAR('Safety Application'!I108)) -> 3/31/2025 | P7: ='Safety Application'!C11 -> US-22 | Q7: ='Safety Application'!H11 -> US-22 | R7: ='Safety Application'!C12 -> 19.24 | S7: ='Safety Application'!H12 -> 19.24 | T7: =IF(LEFT('Safety Application'!A117,1)="\",'Safety Application'!A117,"\\itcfs007.dot.state.oh.us\odrive"&MID('Safety Application'!A117,FIND("\",'Safety Application'!A117,1),100)) -> \\itcfs007.dot.state.oh.us\odrive\Planning\TED\SAFETY\D08\SAFETY APPLICATIONS\202503 Applications\Formal\202503D08-01 (CLI US-22 @ Cl
A10: Project Priority
A11: https://extranet.dot.state.oh.us/divisions/Planning/plan/HSIP_applications/Lists/PriorityInfo/ImportView.aspx
A12: AppID | B12: PriorityText
A13: =C1 -> 202503D08-01 | B13: =IF('Safety Application'!A22="","",'Safety Application'!A22) -> Per the 2024 HSIP priority list, the US 22/Clarksville Rd intersection is ranked as rural intersection #105. This intersection does not appear on the current SIP map.
A16: Application Summary of Crash Patterns and Recommended Countermeasures
A17: https://extranet.dot.state.oh.us/divisions/Planning/plan/HSIP_applications/Lists/CrashPatterns/ImportView.aspx
A18: AppID | B18: SummaryText | C18: RecCountermeasure
A19: =A13 -> 202503D08-01 | B19: ='Safety Application'!A18 -> From 2022-2024, there were 22 total crashes at the US 22/Clarksville Rd intersection (WAR US 22 19.24). There were 7 crashes in 2022, 6 crashes in 2023, and 9 crashes in 2024. There were 0 fatal crashes, 2 serious injury crashes, 13 minor injury crashes, 4 possible injury crashes, and 3 property damage only crashes. The fatal and injury crash rate was 86.4%. Every crash at the US 22/Clarksville Rd intersection was an angle crash. Crashes occurred most often in dry (86%) and daylight (77%) conditions. The majority of crashes occurred between 2-7 PM. Running the stop sign is NOT a major contributing factor with only 14% of crashes resulting from running a stop sign. The most common angle crash was WB/NB with 10 occurrences. There were 15 angle crashes involving westbound vehicles on US 22. Historically, there have been 2-3 angle crashes at the US 22/Clarksville Rd intersection each year from 2015-2020. However, the past 4 years have seen a significant increase in the number of angle crashes. There have been at least 5 angle crashes each year from 2021-2024, with a peak of 9 angle crashes in 2024. A long-term solution is needed to eliminate the potential for high severity angle crashes. | C19: ='Safety Application'!A20 -> StreetLight Data was used to create an estimated AADT and turning movement count at the intersection. This data was used to complete a signal warrant analysis utilizing ODOT’s Traffic Signal Warrant Spreadsheet. Based on this analysis, a traffic signal is not warranted at the US 22/Clarksville Rd intersection. ODOT District 8 will not pursue a new traffic signal at this location because a traffic signal is not warranted and a new traffic signal is predicted to increase the number of overall crashes. All-way stop control is not being considered at this intersection. The 85th percentile speeds on US 22 are near 60 mph and the nearest stopped conditions on US 22 are over 8 miles away in either direction (Nelson Ave to the north and SR 123 to the south). Based on the historical crash data and past countermeasures, the recommended countermeasure at this time is to construct a single lane modern roundabout at US 22/Clarksville Rd. If funding is awarded to this project, a new traffic count will need to be collected. Then, proper traffic analysis would be completed to confirm a traffic signal is unwarranted and a single lane modern roundabout would operate sufficiently in the design year.
A22: Application Crash Data
A23: https://extranet.dot.state.oh.us/divisions/Planning/plan/HSIP_applications/Lists/CrashData/ImportView.aspx
A24: AppID | B24: Pred_Ex_KA | C24: Pred_Ex_B | D24: Pred_Ex_C | E24: Pred_Ex_O | F24: Exp_Ex_KA | G24: Exp_Ex_B | H24: Exp_Ex_C | I24: Exp_Ex_O | J24: PSI_KA | K24: PSI_B | L24: PSI_C | M24: PSI_O | N24: Prop_Type | O24: Prop_KA | P24: Prop_B | Q24: Prop_C | R24: Prop_O | S24: Obs_KA | T24: Obs_B | U24: Obs_C | V24: Obs_O | W24: Obs_People_K | X24: Obs_People_A | Y24: Obs_People_B | Z24: Obs_People_C
A25: =A19 -> 202503D08-01 | B25: ='Safety Application'!F26 -> 0.0943 | C25: ='Safety Application'!G26 -> 0.2288 | D25: ='Safety Application'!H26 -> 0.1523 | E25: ='Safety Application'!I26 -> 0.8185 | F25: ='Safety Application'!F27 -> 0.2135 | G25: ='Safety Application'!G27 -> 0.5173 | H25: ='Safety Application'!H27 -> 0.3445 | I25: ='Safety Application'!I27 -> 0.8483 | J25: ='Safety Application'!F28 -> 0.1192 | K25: ='Safety Application'!G28 -> 0.2885 | L25: ='Safety Application'!H28 -> 0.1922 | M25: ='Safety Application'!I28 -> 0.0298 | N25: =IF(ScoringCalculations!$AB$1="ECAT - Change in base SPF","Predicted","Expected") -> Predicted | O25: ='Safety Application'!F29 -> 0.0021 | P25: ='Safety Application'!G29 -> 0.0184 | Q25: ='Safety Application'!H29 -> 0.023 | R25: ='Safety Application'!I29 -> 0.5928 | S25: ='Safety Application'!F30 -> 0.6667 | T25: ='Safety Application'!G30 -> 4.3333 | U25: ='Safety Application'!H30 -> 1.3333 | V25: ='Safety Application'!I30 -> 1 | W25: ='Safety Application'!F33 -> 0 | X25: ='Safety Application'!G33 -> 1 | Y25: ='Safety Application'!H33 -> 7.6667 | Z25: ='Safety Application'!I33 -> 4.6667
A28: Application Scoring
A29: https://extranet.dot.state.oh.us/divisions/Planning/plan/HSIP_applications/Lists/AppScoring/ImportView.aspx
A30: AppID | B30: Expected_Value | C30: Expected_Points | D30: ObservedFSI_Value | E30: ObservedFSI_Points | F30: PercPSI_Value | G30: PercPSI_Points | H30: RSI_Value | I30: RSI_Points | J30: EPDO_Value | K30: EPDO_Points | L30: VCRatio_Value | M30: VCRatio_Points | N30: BCRatio_Value | O30: BCRatio_Points | P30: FundRequest_Value | Q30: FundRequest_Points | R30: LocEquity_Value | S30: LocEquity_Points | T30: BCRatio_Safety_Value | U30: NetBenefit | V30: NetPV_Project | W30: NetPV_Safety
A31: =A25 -> 202503D08-01 | D31: ='Safety Application'!H37 -> 0.14 | E31: ='Safety Application'!I37 -> 28 | F31: ='Safety Application'!H38 -> 0.3281 | G31: ='Safety Application'!I38 -> 20 | H31: ='Safety Application'!H39 -> 54875.84 | I31: ='Safety Application'!I39 -> 20 | J31: ='Safety Application'!H40 -> 8.08 | K31: ='Safety Application'!I40 -> 20 | N31: ='Safety Application'!I93 -> 0.35 | R31: ='Safety Application'!H41 -> 0.03 | S31: ='Safety Application'!I41 -> 0 | T31: ='Safety Application'!I94 -> 0.31 | U31: ='Safety Application'!I92 -> -1753686.75 | V31: ='Safety Application'!E92 -> 2714862 | W31: ='Safety Application'!E93 -> 961175.25
A34: Strategic Highway Safety Plan
A35: https://extranet.dot.state.oh.us/divisions/Planning/plan/HSIP_applications/Lists/SHSP/ImportView.aspx
A36: AppID | B36: Functional Class | C36: MajAADT | D36: OhioEmpArea | E36: OhioEmpSub | F36: FHWAEmpArea | G36: FHWA_ImprovCat | H36: FHWA_ImprovSubCat
A37: =A31 -> 202503D08-01 | B37: ='Safety Application'!D48 -> 5 - Major Collector Roadway | C37: ='Safety Application'!D49 -> 2200 | D37: ='Safety Application'!E54 -> Serious Crash Types | E37: ='Safety Application'!E55 -> Intersection | F37: ='Safety Application'!E56 -> Improving the design and operation of highway intersections | G37: ='Safety Application'!E57 -> Intersection traffic control | H37: ='Safety Application'!E58 -> Modify control - two-way stop to roundabout
A40: Application Work Locations
A41: https://extranet.dot.state.oh.us/divisions/Planning/plan/HSIP_applications/Lists/WorkLocations/ImportView.aspx
A42: RouteID | B42: AppID | C42: Location ID | D42: NLFID | E42: Begin Logpoint | F42: End Logpoint | G42: startLatitude | H42: startLongitude | I42: endLatitude | J42: endLongitude | K42: Termini
A43: =IF(D43="","",MID(D43,5,2)&"-"&IFERROR(MID(D43,7,5)*1,MID(D43,7,5))&IF(LEFT(D43,1)="S",IF(RIGHT(D43,2)="*C","",MID(D43,13,1)),IF(RIGHT(D43,3)="**C","",MID(D43,12,1)))) -> US-22 | B43: =IF(C43="","",$A$37) -> 202503D08-01 | C43: =IF(D43="","",1) -> 1 | D43: =IF('Safety Application'!A62=0,"",'Safety Application'!A62) -> SWARUS00022**C | E43: =IF(D43="","",'Safety Application'!C62) -> 19.24 | F43: =IF(D43="","",'Safety Application'!D62) -> 19.24 | G43: =IF(D43="","",'Safety Application'!E62) -> 39.41725 | H43: =IF(D43="","",'Safety Application'!F62) -> -83.99869444 | I43: =IF(D43="","",'Safety Application'!AA62) -> 0 | J43: =IF(D43="","",'Safety Application'!AB62) -> 0 | K43: =IF(D43="","",'Safety Application'!G62) -> US 22 and Clarksville Rd
A44: =IF(D44="","",MID(D44,5,2)&"-"&IFERROR(MID(D44,7,5)*1,MID(D44,7,5))&IF(LEFT(D44,1)="S",IF(RIGHT(D44,2)="*C","",MID(D44,13,1)),IF(RIGHT(D44,3)="**C","",MID(D44,12,1)))) ->  | B44: =IF(C44="","",$A$37) ->  | C44: =IF(D44="","",C43+1) ->  | D44: =IF('Safety Application'!A63=0,"",'Safety Application'!A63) ->  | E44: =IF(D44="","",'Safety Application'!C63) ->  | F44: =IF(D44="","",'Safety Application'!D63) ->  | G44: =IF(D44="","",'Safety Application'!E63) ->  | H44: =IF(D44="","",'Safety Application'!F63) ->  | K44: =IF(D44="","",'Safety Application'!G63) -> 
C45: =IF(D45="","",C44+1) ->  | D45: =IF('Safety Application'!A64=0,"",'Safety Application'!A64) ->  | E45: =IF(D45="","",'Safety Application'!C64) ->  | F45: =IF(D45="","",'Safety Application'!D64) ->  | G45: =IF(D45="","",'Safety Application'!E64) ->  | H45: =IF(D45="","",'Safety Application'!F64) ->  | K45: =IF(D45="","",'Safety Application'!G64) -> 
D46: =IF('Safety Application'!A65=0,"",'Safety Application'!A65) ->  | E46: =IF(D46="","",'Safety Application'!C65) ->  | F46: =IF(D46="","",'Safety Application'!D65) ->  | G46: =IF(D46="","",'Safety Application'!E65) ->  | H46: =IF(D46="","",'Safety Application'!F65) ->  | K46: =IF(D46="","",'Safety Application'!G65) -> 
D47: =IF('Safety Application'!A66=0,"",'Safety Application'!A66) ->  | E47: =IF(D47="","",'Safety Application'!C66) ->  | F47: =IF(D47="","",'Safety Application'!D66) ->  | G47: =IF(D47="","",'Safety Application'!E66) ->  | H47: =IF(D47="","",'Safety Application'!F66) ->  | K47: =IF(D47="","",'Safety Application'!G66) -> 
D48: =IF('Safety Application'!A67=0,"",'Safety Application'!A67) ->  | E48: =IF(D48="","",'Safety Application'!C67) ->  | F48: =IF(D48="","",'Safety Application'!D67) ->  | G48: =IF(D48="","",'Safety Application'!E67) ->  | H48: =IF(D48="","",'Safety Application'!F67) ->  | K48: =IF(D48="","",'Safety Application'!G67) -> 
D49: =IF('Safety Application'!A68=0,"",'Safety Application'!A68) ->  | E49: =IF(D49="","",'Safety Application'!C68) ->  | F49: =IF(D49="","",'Safety Application'!D68) ->  | G49: =IF(D49="","",'Safety Application'!E68) ->  | H49: =IF(D49="","",'Safety Application'!F68) ->  | K49: =IF(D49="","",'Safety Application'!G68) -> 
D50: =IF('Safety Application'!A69=0,"",'Safety Application'!A69) ->  | E50: =IF(D50="","",'Safety Application'!C69) ->  | F50: =IF(D50="","",'Safety Application'!D69) ->  | G50: =IF(D50="","",'Safety Application'!E69) ->  | H50: =IF(D50="","",'Safety Application'!F69) ->  | K50: =IF(D50="","",'Safety Application'!G69) -> 
D51: =IF('Safety Application'!A70=0,"",'Safety Application'!A70) ->  | E51: =IF(D51="","",'Safety Application'!C70) ->  | F51: =IF(D51="","",'Safety Application'!D70) ->  | G51: =IF(D51="","",'Safety Application'!E70) ->  | H51: =IF(D51="","",'Safety Application'!F70) ->  | K51: =IF(D51="","",'Safety Application'!G70) -> 
D52: =IF('Safety Application'!A71=0,"",'Safety Application'!A71) ->  | E52: =IF(D52="","",'Safety Application'!C71) ->  | F52: =IF(D52="","",'Safety Application'!D71) ->  | G52: =IF(D52="","",'Safety Application'!E71) ->  | H52: =IF(D52="","",'Safety Application'!F71) ->  | K52: =IF(D52="","",'Safety Application'!G71) -> 
A54: Project Funding
A55: https://extranet.dot.state.oh.us/divisions/Planning/plan/HSIP_applications/Lists/Funding/ImportView.aspx
A56: AppID | B56: FY_SafetyStudy | C56: FY_IMS | D56: FY_PE_Enviro | E56: FY_PE_Design | F56: FY_ROW | G56: FY_Const | H56: NewSafety_AMT_SafetyStudy | I56: NewSafety_AMT_IMS | J56: NewSafety_AMT_PE_Enviro | K56: NewSafety_AMT_PE_Design | L56: NewSafety_AMT_ROW | M56: NewSafety_AMT_Const | N56: PrevSafety_AMT_SafetyStudy | O56: PrevSafety_AMT_IMS | P56: PrevSafety_AMT_PE_Enviro | Q56: PrevSafety_AMT_PE_Design | R56: PrevSafety_AMT_ROW | S56: PrevSafety_AMT_Const | T56: Sponsor_AMT_SafetyStudy | U56: Sponsor_AMT_IMS | V56: Sponsor_AMT_PE_Enviro | W56: Sponsor_AMT_PE_Design | X56: Sponsor_AMT_ROW | Y56: Sponsor_AMT_Const | Z56: Alt1_Source | AA56: Alt1_AMT_SafetyStudy | AB56: Alt1_AMT_IMS | AC56: Alt1_AMT_PE_Enviro | AD56: Alt1_AMT_PE_Design | AE56: Alt1_AMT_ROW | AF56: Alt1_AMT_Const | AG56: Alt2_Source | AH56: Alt2_AMT_SafetyStudy | AI56: Alt2_AMT_IMS | AJ56: Alt2_AMT_PE_Enviro | AK56: Alt2_AMT_PE_Design | AL56: Alt2_AMT_ROW | AM56: Alt2_AMT_Const | AN56: Alt3_Source | AO56: Alt3_AMT_SafetyStudy | AP56: Alt3_AMT_IMS | AQ56: Alt3_AMT_PE_Enviro | AR56: Alt3_AMT_PE_Design | AS56: Alt3_AMT_ROW | AT56: Alt3_AMT_Const | AU56: Alt4_Source | AV56: Alt4_AMT_SafetyStudy | AW56: Alt4_AMT_IMS | AX56: Alt4_AMT_PE_Enviro | AY56: Alt4_AMT_PE_Design | AZ56: Alt4_AMT_ROW | BA56: Alt4_AMT_Const | BB56: Alt5_Source | BC56: Alt5_AMT_SafetyStudy | BD56: Alt5_AMT_IMS | BE56: Alt5_AMT_PE_Enviro | BF56: Alt5_AMT_PE_Design | BG56: Alt5_AMT_ROW | BH56: Alt5_AMT_Const | BI56: Alt6_Source | BJ56: Alt6_AMT_SafetyStudy | BK56: Alt6_AMT_IMS | BL56: Alt6_AMT_PE_Enviro | BM56: Alt6_AMT_PE_Design | BN56: Alt6_AMT_ROW | BO56: Alt6_AMT_Const | BP56: Alt7_Source | BQ56: Alt7_AMT_SafetyStudy | BR56: Alt7_AMT_IMS | BS56: Alt7_AMT_PE_Enviro | BT56: Alt7_AMT_PE_Design | BU56: Alt7_AMT_ROW | BV56: Alt7_AMT_Const | BW56: AddtlDetails
A57: =A37 -> 202503D08-01 | B57: =IF('Safety Application'!D75=0,"",'Safety Application'!D75) ->  | C57: =IF('Safety Application'!E75=0,"",'Safety Application'!E75) ->  | D57: =IF('Safety Application'!F75=0,"",'Safety Application'!F75) -> 2026 | E57: =IF('Safety Application'!G75=0,"",'Safety Application'!G75) -> 2028 | F57: =IF('Safety Application'!H75=0,"",'Safety Application'!H75) -> 2028 | G57: =IF('Safety Application'!I75=0,"",'Safety Application'!I75) -> 2029 | H57: =IF('Safety Application'!D78=0,"",'Safety Application'!D78) ->  | I57: =IF('Safety Application'!E78=0,"",'Safety Application'!E78) ->  | J57: =IF('Safety Application'!F78=0,"",'Safety Application'!F78) -> 400000 | K57: =IF('Safety Application'!G78=0,"",'Safety Application'!G78) -> 125000 | L57: =IF('Safety Application'!H78=0,"",'Safety Application'!H78) -> 200000 | M57: =IF('Safety Application'!I78=0,"",'Safety Application'!I78) -> 2373862 | N57: =IF('Safety Application'!D77=0,"",'Safety Application'!D77) ->  | O57: =IF('Safety Application'!E77=0,"",'Safety Application'!E77) ->  | P57: =IF('Safety Application'!F77=0,"",'Safety Application'!F77) ->  | Q57: =IF('Safety Application'!G77=0,"",'Safety Application'!G77) ->  | R57: =IF('Safety Application'!H77=0,"",'Safety Application'!H77) ->  | S57: =IF('Safety Application'!I77=0,"",'Safety Application'!I77) ->  | T57: =IF('Safety Application'!D79=0,"",'Safety Application'!D79) ->  | U57: =IF('Safety Application'!E79=0,"",'Safety Application'!E79) ->  | V57: =IF('Safety Application'!F79=0,"",'Safety Application'!F79) ->  | W57: =IF('Safety Application'!G79=0,"",'Safety Application'!G79) ->  | X57: =IF('Safety Application'!H79=0,"",'Safety Application'!H79) ->  | Y57: =IF('Safety Application'!I79=0,"",'Safety Application'!I79) ->  | Z57: =IF('Safety Application'!A80=0,"",'Safety Application'!A80) ->  | AA57: =IF('Safety Application'!D80=0,"",'Safety Application'!D80) ->  | AB57: =IF('Safety Application'!E80=0,"",'Safety Application'!E80) ->  | AC57: =IF('Safety Application'!F80=0,"",'Safety Application'!F80) ->  | AD57: =IF('Safety Application'!G80=0,"",'Safety Application'!G80) ->  | AE57: =IF('Safety Application'!H80=0,"",'Safety Application'!H80) ->  | AF57: =IF('Safety Application'!I80=0,"",'Safety Application'!I80) ->  | AG57: =IF('Safety Application'!A81=0,"",'Safety Application'!A81) ->  | AH57: =IF('Safety Application'!D81=0,"",'Safety Application'!D81) ->  | AI57: =IF('Safety Application'!E81=0,"",'Safety Application'!E81) ->  | AJ57: =IF('Safety Application'!F81=0,"",'Safety Application'!F81) ->  | AK57: =IF('Safety Application'!G81=0,"",'Safety Application'!G81) ->  | AL57: =IF('Safety Application'!H81=0,"",'Safety Application'!H81) ->  | AM57: =IF('Safety Application'!I81=0,"",'Safety Application'!I81) ->  | AN57: =IF('Safety Application'!A82=0,"",'Safety Application'!A82) ->  | AO57: =IF('Safety Application'!D82=0,"",'Safety Application'!D82) ->  | AP57: =IF('Safety Application'!E82=0,"",'Safety Application'!E82) ->  | AQ57: =IF('Safety Application'!F82=0,"",'Safety Application'!F82) ->  | AR57: =IF('Safety Application'!G82=0,"",'Safety Application'!G82) ->  | AS57: =IF('Safety Application'!H82=0,"",'Safety Application'!H82) ->  | AT57: =IF('Safety Application'!I82=0,"",'Safety Application'!I82) ->  | AU57: =IF('Safety Application'!A83=0,"",'Safety Application'!A83) ->  | AV57: =IF('Safety Application'!D83=0,"",'Safety Application'!D83) ->  | AW57: =IF('Safety Application'!E83=0,"",'Safety Application'!E83) ->  | AX57: =IF('Safety Application'!F83=0,"",'Safety Application'!F83) ->  | AY57: =IF('Safety Application'!G83=0,"",'Safety Application'!G83) ->  | AZ57: =IF('Safety Application'!H83=0,"",'Safety Application'!H83) ->  | BA57: =IF('Safety Application'!I83=0,"",'Safety Application'!I83) ->  | BB57: =IF('Safety Application'!A84=0,"",'Safety Application'!A84) ->  | BC57: =IF('Safety Application'!D84=0,"",'Safety Application'!D84) ->  | BD57: =IF('Safety Application'!E84=0,"",'Safety Application'!E84) ->  | BE57: =IF('Safety Application'!F84=0,"",'Safety Application'!F84) ->  | BF57: =IF('Safety Application'!G84=0,"",'Safety Application'!G84) ->  | BG57: =IF('Safety Application'!H84=0,"",'Safety Application'!H84) ->  | BH57: =IF('Safety Application'!I84=0,"",'Safety Application'!I84) ->  | BI57: =IF('Safety Application'!A85=0,"",'Safety Application'!A85) ->  | BJ57: =IF('Safety Application'!D85=0,"",'Safety Application'!D85) ->  | BK57: =IF('Safety Application'!E85=0,"",'Safety Application'!E85) ->  | BL57: =IF('Safety Application'!F85=0,"",'Safety Application'!F85) ->  | BM57: =IF('Safety Application'!G85=0,"",'Safety Application'!G85) ->  | BN57: =IF('Safety Application'!H85=0,"",'Safety Application'!H85) ->  | BO57: =IF('Safety Application'!I85=0,"",'Safety Application'!I85) ->  | BP57: =IF('Safety Application'!A86=0,"",'Safety Application'!A86) ->  | BQ57: =IF('Safety Application'!D86=0,"",'Safety Application'!D86) ->  | BR57: =IF('Safety Application'!E86=0,"",'Safety Application'!E86) ->  | BS57: =IF('Safety Application'!F86=0,"",'Safety Application'!F86) ->  | BT57: =IF('Safety Application'!G86=0,"",'Safety Application'!G86) ->  | BU57: =IF('Safety Application'!H86=0,"",'Safety Application'!H86) ->  | BV57: =IF('Safety Application'!I86=0,"",'Safety Application'!I86) ->  | BW57: =IF('Safety Application'!A89=0,"",'Safety Application'!A89) -> District requesting funding be combined with the CLI US 22 RAB application (202503D08-02). Design and construction for both roundabouts to be completed as 1 project. Design consultant to be selected through the January 2026 programmatic.
A60: Project Development
A61: https://extranet.dot.state.oh.us/divisions/Planning/plan/HSIP_applications/Lists/ProjectDevelopment/ImportView.aspx
A62: AppID | B62: SafetyStudy_CompBy | C62: SafetyStudy_CompDt | D62: IMS_CompBy | E62: IMS__CompDt | F62: PE_Enviro_CompBy | G62: PE_Enviro_CompDt | H62: PE_Design_CompBy | I62: PE_Design_CompDt | J62: ROW_CompBy | K62: ROW_CompDt
A63: =A57 -> 202503D08-01 | B63: =IF('Safety Application'!E98=0,"",'Safety Application'!E98) ->  | C63: =IF('Safety Application'!H98="","",MONTH('Safety Application'!H98)&"/"&DAY('Safety Application'!H98)&"/"&YEAR('Safety Application'!H98)) ->  | D63: =IF('Safety Application'!E99=0,"",'Safety Application'!E99) ->  | E63: =IF('Safety Application'!H99="","",MONTH('Safety Application'!H99)&"/"&DAY('Safety Application'!H99)&"/"&YEAR('Safety Application'!H99)) ->  | F63: =IF('Safety Application'!E100=0,"",'Safety Application'!E100) ->  | G63: =IF('Safety Application'!H100="","",MONTH('Safety Application'!H100)&"/"&DAY('Safety Application'!H100)&"/"&YEAR('Safety Application'!H100)) ->  | H63: =IF('Safety Application'!E101=0,"",'Safety Application'!E101) ->  | I63: =IF('Safety Application'!H101="","",MONTH('Safety Application'!H101)&"/"&DAY('Safety Application'!H101)&"/"&YEAR('Safety Application'!H101)) ->  | J63: =IF('Safety Application'!E102=0,"",'Safety Application'!E102) ->  | K63: =IF('Safety Application'!H102="","",MONTH('Safety Application'!H102)&"/"&DAY('Safety Application'!H102)&"/"&YEAR('Safety Application'!H102)) -> 
